Workbook

Sheet Contato
B21: ícones: designed by Flat Icons, Freepik, Flat Icons from Flaticon

Sheet Dashboard
B3: ="Faltam "&E49&" dias ("&E50&" semanas)"&" para o concurso" -> Faltam 54 dias (7 semanas) para o concurso
R5: Mês | S5: Meta | T5: Realizado
R6: =MONTH(NOW()) -> 12 | S6: =VLOOKUP(R6,Dados!W6:Y17,2,FALSE) -> 5.833333333 | T6: =VLOOKUP(R6,Dados!W6:Y17,3,FALSE) -> 0
R7: =UPPER(TEXT(R6,"MMMM")) -> JANEIRO | S7: =S6 -> 5.833333333 | T7: =T6 -> 0 | U7: =T7/S7 -> 0%
B9: LEMBRETES | J9: LEMBRETES | Q9: =IF(S9=1,"Dom",IF(S9=2,"Seg",IF(S9=3,"Ter",IF(S9=4,"Qua",IF(S9=5,"Qui",IF(S9=6,"Sex",IF(S9=7,"Sáb"))))))) -> Qua | R9: =IF(S9=1,"Domingo",IF(S9=2,"Segunda",IF(S9=3,"Terça",IF(S9=4,"Quarta",IF(S9=5,"Quinta",IF(S9=6,"Sexta",IF(S9=7,"Sábado"))))))) -> Quarta | S9: =WEEKDAY(T9) -> 4 | T9: =T10-1 -> 2018-12-05 | U9: =IFERROR(SUMIFS(Tabela2[Horas],Tabela2[Data],"="&T9),"") -> 0
B10: ANOTAR NA APOSTILA ARTIGOS MAIS COBRADOS | Q10: =IF(S10=1,"Dom",IF(S10=2,"Seg",IF(S10=3,"Ter",IF(S10=4,"Qua",IF(S10=5,"Qui",IF(S10=6,"Sex",IF(S10=7,"Sáb"))))))) -> Qui | R10: Quinta | S10: 5 | T10: 2018-12-06 | U10: =IFERROR(SUMIFS(Tabela2[Horas],Tabela2[Data],"="&T10),"") -> 0
Q11: Sex | R11: Sexta | S11: 6 | T11: 2018-12-07 | U11: =IFERROR(SUMIFS(Tabela2[Horas],Tabela2[Data],"="&T11),"") -> 0
Q12: Sáb | R12: Sábado | S12: 7 | T12: 2018-12-08 | U12: =IFERROR(SUMIFS(Tabela2[Horas],Tabela2[Data],"="&T12),"") -> 0
Q13: Dom | R13: Domingo | S13: 1 | T13: 2018-12-09 | U13: =IFERROR(SUMIFS(Tabela2[Horas],Tabela2[Data],"="&T13),"") -> 0
Q14: Seg | R14: =IF(S14=1,"Domingo",IF(S14=2,"Segunda",IF(S14=3,"Terça",IF(S14=4,"Quarta",IF(S14=5,"Quinta",IF(S14=6,"Sexta",IF(S14=7,"Sábado"))))))) -> Segunda | S14: 2 | T14: 2018-12-10 | U14: =IFERROR(SUMIFS(Tabela2[Horas],Tabela2[Data],"="&T14),"") -> 0
Q15: =IF(S15=1,"Dom (Hoje)",IF(S15=2,"Seg (Hoje)",IF(S15=3,"Ter (Hoje)",IF(S15=4,"Qua (Hoje)",IF(S15=5,"Qui (Hoje)",IF(S15=6,"Sex (Hoje)",IF(S15=7,"Sáb (Hoje)"))))))) -> Ter (Hoje) | R15: =IF(S15=1,"Domingo (Hoje)",IF(S15=2,"Segunda (Hoje)",IF(S15=3,"Terça (Hoje)",IF(S15=4,"Quarta (Hoje)",IF(S15=5,"Quinta (Hoje)",IF(S15=6,"Sexta (Hoje)",IF(S15=7,"Sábado (Hoje)"))))))) -> Terça (Hoje) | S15: =WEEKDAY(T15) -> 3 | T15: =TODAY() -> 2018-12-11 | U15: =IFERROR(SUMIFS(Tabela2[Horas],Tabela2[Data],"="&T15),"") -> 0
B46: Início Estudos | D46: =Edital!I7 -> 2018-12-06
B47: Hoje | D47: =TODAY() -> 2018-12-11
B48: Data Concurso | D48: =Edital!I9 -> 2019-02-03
D49: =IF(D47>D46,D48-D47,D48-D46) -> 54 | E49: =IF(D49<0,"x",D49) -> 54
D50: =INT((D49/7)) -> 7 | E50: =IF(D50<0,"x",D50) -> 7

Sheet Edital
B5: Informações sobre o concurso que você irá prestar
B7: Concurso | D7: POLÍCIA RODOVIÁRIA FEDERAL | H7: Início estudos | I7: 2018-12-06 | L7: =Dashboard!D49 -> 54 | Q7: =Dados!T15 -> 25
B9: Banca | D9: CEBRASPE | H9: Data da prova | I9: 2019-02-03 | Q9: =Q7 -> 25
B11: Observações | H11: Total de questões | I11: =SUM(F15:G34) -> 30 | L11: Dias para o concurso
B14: Matéria | E14: Sigla | F14: Nº Questões | H14: Peso | I14: Rel. | J14: Assuntos estudados | L14: Recomendação
C15: LÍNGUA PORTUGUESA | E15: PORT | F15: 10 | H15: 1 | I15: =IFERROR(IF(F15<>"",F15*H15/$I$35,""),"-") -> 25% | J15: =IFERROR('1'!O5,"") -> 50% | L15: =IFERROR($Q$9*I15,"") -> 6.25 | N15: ='1'!P7 -> 0
C16: RACIOCÍNIO LÓGICO MATEMÁTICO | E16: RLM | F16: 10 | H16: 2 | I16: =IFERROR(IF(F16<>"",F16*H16/$I$35,""),"-") -> 50% | J16: =IFERROR('2'!O5,"") ->  | L16: =IFERROR($Q$9*I16,"") -> 12.5 | N16: ='2'!P7 -> 0
C17: INFORMÁTICA | E17: INFO | F17: 10 | H17: 1 | I17: =IFERROR(IF(F17<>"",F17*H17/$I$35,""),"-") -> 25% | J17: =IFERROR('3'!O5,"") ->  | L17: =IFERROR($Q$9*I17,"") -> 6.25 | N17: ='3'!P7 -> 0
I18: =IFERROR(IF(F18<>"",F18*H18/$I$35,""),"-") ->  | J18: =IFERROR(#REF!,"") ->  | N18: =#REF! -> 
J19: =IFERROR(#REF!,"") ->  | N19: =#REF! -> 
J20: =IFERROR(#REF!,"") ->  | N20: =#REF! -> 
J21: =IFERROR(#REF!,"") ->  | N21: =#REF! -> 
J22: =IFERROR(#REF!,"") ->  | N22: =#REF! -> 
J23: =IFERROR(#REF!,"") ->  | N23: =#REF! -> 
J24: =IFERROR(#REF!,"") ->  | N24: =#REF! -> 
J25: =IFERROR(#REF!,"") ->  | N25: =#REF! -> 
J26: =IFERROR(#REF!,"") ->  | N26: =#REF! -> 
J27: =IFERROR(#REF!,"") ->  | N27: =#REF! -> 
J28: =IFERROR(#REF!,"") ->  | N28: =#REF! -> 
J29: =IFERROR(#REF!,"") ->  | N29: =#REF! -> 
J30: =IFERROR(#REF!,"") ->  | N30: =#REF! -> 
J31: =IFERROR(#REF!,"") ->  | N31: =#REF! -> 
J32: =IFERROR(#REF!,"") ->  | N32: =#REF! -> 
J33: =IFERROR(#REF!,"") ->  | N33: =#REF! -> 
J34: =IFERROR(#REF!,"") ->  | N34: =#REF! -> 
C35: =COUNTA(C15:D34) -> 3 | I35: =SUMPRODUCT(F15:F34,H15:H34) -> 40

Sheet Ciclo
B5: Ciclo 1 | H5: Ciclo 2 | M5: =COUNTA(E7:E21) -> 2 | N5: =COUNTIF(E7:E21,"Sim") -> 2 | O5: =N5&"/"&M5 -> 2/2
B6: Matéria | D6: Horas | E6: Estudou? | H6: Matéria | J6: Horas | K6: Estudou? | M6: =SUM(D7:D21) -> 0.1458333333 | N6: =M6 -> 0.1458333333
B7: 1 | C7: DIREITO ADMINISTRATIVO | D7: 01:30:00 | E7: Sim | F7: =D7 -> 0.0625 | H7: 1 | L7: =J7 -> 0 | M7: =SUMIF(E7:E21,"Sim",D7:D21) -> 0.1458333333 | N7: =M7 -> 0.1458333333 | O7: =N7/N6 -> 100%
B8: 2 | C8: DIREITO PENAL | D8: 02:00:00 | E8: Sim | F8: =D8 -> 0.08333333333 | H8: 2 | L8: =J8 -> 0 | M8: =M6-M7 -> 0 | N8: =M8 -> 0
B9: 3 | F9: 0 | H9: 3 | L9: 0
B10: 4 | F10: 0 | H10: 4 | L10: 0
B11: 5 | F11: 0 | H11: 5 | L11: 0 | M11: =COUNTA(K7:K21) -> 0 | N11: =COUNTIF(K7:K21,"Sim") -> 0 | O11: =N11&"/"&M11 -> 0/0
B12: 6 | F12: 0 | H12: 6 | L12: 0 | M12: =SUM(J7:J21) -> 0 | N12: =M12 -> 0
B13: 7 | F13: 0 | H13: 7 | L13: 0 | M13: =SUMIF(K7:K21,"Sim",J7:J21) -> 0 | N13: =M13 -> 0 | O13: =N13/N12 -> 
B14: 8 | F14: 0 | H14: 8 | L14: 0 | M14: =M12-M13 -> 0 | N14: =M14 -> 0
B15: 9 | F15: 0 | H15: 9 | L15: 0
B16: 10 | F16: 0 | H16: 10 | L16: 0
B17: 11 | F17: 0 | H17: 11 | L17: 0
B18: 12 | F18: 0 | H18: 12 | L18: 0
B19: 13 | F19: 0 | H19: 13 | L19: 0
B20: 14 | F20: 0 | H20: 14 | L20: 0
B21: 15 | F21: 0 | H21: 15 | L21: 0

Sheet Grade
I3: Dica
B5: Horário | C5: Segunda | D5: Terça | E5: Quarta | F5: Quinta | G5: Sexta | H5: Sábado | I5: Domingo
B6: 06h - 07h
B7: 07h - 08h
B8: 08h - 09h
B9: 09h - 10h
B10: 10h - 11h
B11: 11h - 12h
B12: 12h - 13h
B13: 13h - 14h
B14: 14h - 15h
B15: 15h - 16h
B16: 16h - 17h
B17: 17h - 18h
B18: 18h - 19h
B19: 19h - 20h
B20: 20h - 21h
B21: 21h - 22h
B22: 22h - 23h
B23: 23h - 24h

Sheet Horas
G2: ► | H2: Hoje | I2: =TODAY() -> 2018-12-11 | J2: =IFERROR(SUMIFS(Tabela2[Horas],Tabela2[Data],"="&I2),"") -> 0
G3: II | I3: =I2-WEEKDAY(I2,2)+1 -> 2018-12-10 | J3: =SUMIFS(Tabela2[Horas],Tabela2[Data],">="&I4,Tabela2[Data],"<="&I6) -> 0
I4: =I3 -> 2018-12-10 | L4: =DATE(YEAR(I2),MONTH(I2)+1,0) -> 2018-12-31
H5: Ult.dia.sema | I5: =I4+6 -> 2018-12-16
I6: =I5 -> 2018-12-16
B11: Data | C11: Matéria | D11: Assunto | E11: Horas

Sheet Exercícios
I4: =G6 -> 65%
E6: Marcar assuntos que eu acertar menos que: | G6: 65% | I6: =SUBTOTAL(9,Tabela5[Questões]) -> 74
I7: =SUBTOTAL(9,Tabela5[Acertos]) -> 54 | J7: =I6-I7 -> 20
B9: Data | C9: Matéria | D9: Anotações | E9: Questões | F9: Acertos | G9: %
B10: 2018-12-15 | C10: LÍNGUA PORTUGUESA | E10: 10 | F10: 7 | G10: =IFERROR(Tabela5[[#This Row],[Acertos]]/Tabela5[[#This Row],[Questões]],"") -> 70%
B11: 2018-12-16 | C11: INFORMÁTICA | E11: 45 | F11: 29 | G11: =IFERROR(Tabela5[[#This Row],[Acertos]]/Tabela5[[#This Row],[Questões]],"") -> 64%
B12: 2018-12-17 | C12: RACIOCÍNIO LÓGICO MATEMÁTICO | E12: 19 | F12: 18 | G12: =IFERROR(Tabela5[[#This Row],[Acertos]]/Tabela5[[#This Row],[Questões]],"") -> 95%

Sheet Simulados
B5: Legenda | D5: SIMULADO 1 | J5: SIMULADO 2 | P5: SIMULADO 3 | V5: SIMULADO 4 | AB5: SIMULADO 5 | AH5: SIMULADO 6 | AN5: SIMULADO 7 | AT5: SIMULADO 8 | AZ5: SIMULADO 9 | BF5: SIMULADO 10 | BL5: SIMULADO 11 | BR5: SIMULADO 12 | BX5: SIMULADO 13 | CD5: SIMULADO 14 | CJ5: SIMULADO 15 | CP5: SIMULADO 16 | CV5: SIMULADO 17 | DB5: SIMULADO 18 | DH5: SIMULADO 19 | DN5: SIMULADO 20
B6: Q = Número de questões | D6: Data | F6: 2018-09-20 | J6: Data | P6: Data | V6: Data | AB6: Data | AH6: Data | AN6: Data | AT6: Data | AZ6: Data | BF6: Data | BL6: Data | BR6: Data | BX6: Data | CD6: Data | CJ6: Data | CP6: Data | CV6: Data | DB6: Data | DH6: Data | DN6: Data
B7: A = Acertos | D7: Banca | F7: VUNESP | J7: Banca | P7: Banca | V7: Banca | AB7: Banca | AH7: Banca | AN7: Banca | AT7: Banca | AZ7: Banca | BF7: Banca | BL7: Banca | BR7: Banca | BX7: Banca | CD7: Banca | CJ7: Banca | CP7: Banca | CV7: Banca | DB7: Banca | DH7: Banca | DN7: Banca
B8: B = Questões em branco | D8: NC | F8: 80% | J8: NC | P8: NC | V8: NC | AB8: NC | AH8: NC | AN8: NC | AT8: NC | AZ8: NC | BF8: NC | BL8: NC | BR8: NC | BX8: NC | CD8: NC | CJ8: NC | CP8: NC | CV8: NC | DB8: NC | DH8: NC | DN8: NC
B9: E = Questões erradas (automático) | D9: Média | F9: =IFERROR(IF(F7="CESPE",E37,E36),"--") ->  | J9: Média | L9: =IFERROR(IF(L7="CESPE",K37,K36),"--") ->  | P9: Média | R9: =IFERROR(IF(R7="CESPE",Q37,Q36),"--") ->  | V9: Média | X9: =IFERROR(IF(X7="CESPE",W37,W36),"--") ->  | AB9: Média | AD9: =IFERROR(IF(AD7="CESPE",AC37,AC36),"--") ->  | AH9: Média | AJ9: =IFERROR(IF(AJ7="CESPE",AI37,AI36),"--") ->  | AN9: Média | AP9: =IFERROR(IF(AP7="CESPE",AO37,AO36),"--") ->  | AT9: Média | AV9: =IFERROR(IF(AV7="CESPE",AU37,AU36),"--") ->  | AZ9: Média | BB9: =IFERROR(IF(BB7="CESPE",BA37,BA36),"--") ->  | BF9: Média | BH9: =IFERROR(IF(BH7="CESPE",BG37,BG36),"--") ->  | BL9: Média | BN9: =IFERROR(IF(BN7="CESPE",BM37,BM36),"--") ->  | BR9: Média | BT9: =IFERROR(IF(BT7="CESPE",BS37,BS36),"--") ->  | BX9: Média | BZ9: =IFERROR(IF(BZ7="CESPE",BY37,BY36),"--") ->  | CD9: Média | CF9: =IFERROR(IF(CF7="CESPE",CE37,CE36),"--") ->  | CJ9: Média | CL9: =IFERROR(IF(CL7="CESPE",CK37,CK36),"--") ->  | CP9: Média | CR9: =IFERROR(IF(CR7="CESPE",CQ37,CQ36),"--") ->  | CV9: Média | CX9: =IFERROR(IF(CX7="CESPE",CW37,CW36),"--") ->  | DB9: Média | DD9: =IFERROR(IF(DD7="CESPE",DC37,DC36),"--") ->  | DH9: Média | DJ9: =IFERROR(IF(DJ7="CESPE",DI37,DI36),"--") ->  | DN9: Média | DP9: =IFERROR(IF(DP7="CESPE",DO37,DO36),"--") -> 
B11: Matérias | D11: Q | E11: A | F11: B | G11: E | H11: % | J11: Q | K11: A | L11: B | M11: E | N11: % | P11: Q | Q11: A | R11: B | S11: E | T11: % | V11: Q | W11: A | X11: B | Y11: E | Z11: % | AB11: Q | AC11: A | AD11: B | AE11: E | AF11: % | AH11: Q | AI11: A | AJ11: B | AK11: E | AL11: % | AN11: Q | AO11: A | AP11: B | AQ11: E | AR11: % | AT11: Q | AU11: A | AV11: B | AW11: E | AX11: % | AZ11: Q | BA11: A | BB11: B | BC11: E | BD11: % | BF11: Q | BG11: A | BH11: B | BI11: E | BJ11: % | BL11: Q | BM11: A | BN11: B | BO11: E | BP11: % | BR11: Q | BS11: A | BT11: B | BU11: E | BV11: % | BX11: Q | BY11: A | BZ11: B | CA11: E | CB11: % | CD11: Q | CE11: A | CF11: B | CG11: E | CH11: % | CJ11: Q | CK11: A | CL11: B | CM11: E | CN11: % | CP11: Q | CQ11: A | CR11: B | CS11: E | CT11: % | CV11: Q | CW11: A | CX11: B | CY11: E | CZ11: % | DB11: Q | DC11: A | DD11: B | DE11: E | DF11: % | DH11: Q | DI11: A | DJ11: B | DK11: E | DL11: % | DN11: Q | DO11: A | DP11: B | DQ11: E | DR11: %
B12: =Edital!C15 -> LÍNGUA PORTUGUESA | G12: =D12-E12-F12 -> 0 | H12: =IFERROR(E12/D12,"") ->  | M12: =J12-K12-L12 -> 0 | N12: =IFERROR(K12/J12,"") ->  | S12: =P12-Q12-R12 -> 0 | T12: =IFERROR(Q12/P12,"") ->  | Y12: =V12-W12-X12 -> 0 | Z12: =IFERROR(W12/V12,"") ->  | AE12: =AB12-AC12-AD12 -> 0 | AF12: =IFERROR(AC12/AB12,"") ->  | AK12: =AH12-AI12-AJ12 -> 0 | AL12: =IFERROR(AI12/AH12,"") ->  | AQ12: =AN12-AO12-AP12 -> 0 | AR12: =IFERROR(AO12/AN12,"") ->  | AW12: =AT12-AU12-AV12 -> 0 | AX12: =IFERROR(AU12/AT12,"") ->  | BC12: =AZ12-BA12-BB12 -> 0 | BD12: =IFERROR(BA12/AZ12,"") ->  | BI12: =BF12-BG12-BH12 -> 0 | BJ12: =IFERROR(BG12/BF12,"") ->  | BO12: =BL12-BM12-BN12 -> 0 | BP12: =IFERROR(BM12/BL12,"") ->  | BU12: =BR12-BS12-BT12 -> 0 | BV12: =IFERROR(BS12/BR12,"") ->  | CA12: =BX12-BY12-BZ12 -> 0 | CB12: =IFERROR(BY12/BX12,"") ->  | CG12: =CD12-CE12-CF12 -> 0 | CH12: =IFERROR(CE12/CD12,"") ->  | CM12: =CJ12-CK12-CL12 -> 0 | CN12: =IFERROR(CK12/CJ12,"") ->  | CS12: =CP12-CQ12-CR12 -> 0 | CT12: =IFERROR(CQ12/CP12,"") ->  | CY12: =CV12-CW12-CX12 -> 0 | CZ12: =IFERROR(CW12/CV12,"") ->  | DE12: =DB12-DC12-DD12 -> 0 | DF12: =IFERROR(DC12/DB12,"") ->  | DK12: =DH12-DI12-DJ12 -> 0 | DL12: =IFERROR(DI12/DH12,"") ->  | DQ12: =DN12-DO12-DP12 -> 0 | DR12: =IFERROR(DO12/DN12,"") -> 
B13: =Edital!C16 -> RACIOCÍNIO LÓGICO MATEMÁTICO | G13: =D13-E13-F13 -> 0 | M13: =J13-K13-L13 -> 0 | S13: =P13-Q13-R13 -> 0 | Y13: =V13-W13-X13 -> 0 | AE13: =AB13-AC13-AD13 -> 0 | AK13: =AH13-AI13-AJ13 -> 0 | AQ13: =AN13-AO13-AP13 -> 0 | AW13: =AT13-AU13-AV13 -> 0 | BC13: =AZ13-BA13-BB13 -> 0 | BI13: =BF13-BG13-BH13 -> 0 | BO13: =BL13-BM13-BN13 -> 0 | BU13: =BR13-BS13-BT13 -> 0 | CA13: =BX13-BY13-BZ13 -> 0 | CG13: =CD13-CE13-CF13 -> 0 | CM13: =CJ13-CK13-CL13 -> 0 | CS13: =CP13-CQ13-CR13 -> 0 | CY13: =CV13-CW13-CX13 -> 0 | DE13: =DB13-DC13-DD13 -> 0 | DK13: =DH13-DI13-DJ13 -> 0 | DQ13: =DN13-DO13-DP13 -> 0
B14: =Edital!C17 -> INFORMÁTICA | G14: =D14-E14-F14 -> 0 | M14: =J14-K14-L14 -> 0 | S14: =P14-Q14-R14 -> 0 | Y14: =V14-W14-X14 -> 0 | AE14: =AB14-AC14-AD14 -> 0 | AK14: =AH14-AI14-AJ14 -> 0 | AQ14: =AN14-AO14-AP14 -> 0 | AW14: =AT14-AU14-AV14 -> 0 | BC14: =AZ14-BA14-BB14 -> 0 | BI14: =BF14-BG14-BH14 -> 0 | BO14: =BL14-BM14-BN14 -> 0 | BU14: =BR14-BS14-BT14 -> 0 | CA14: =BX14-BY14-BZ14 -> 0 | CG14: =CD14-CE14-CF14 -> 0 | CM14: =CJ14-CK14-CL14 -> 0 | CS14: =CP14-CQ14-CR14 -> 0 | CY14: =CV14-CW14-CX14 -> 0 | DE14: =DB14-DC14-DD14 -> 0 | DK14: =DH14-DI14-DJ14 -> 0 | DQ14: =DN14-DO14-DP14 -> 0
B15: =Edital!C18 -> 0 | G15: 0 | M15: 0 | S15: 0 | Y15: 0 | AE15: 0 | AK15: 0 | AQ15: 0 | AW15: 0 | BC15: 0 | BI15: 0 | BO15: 0 | BU15: 0 | CA15: 0 | CG15: 0 | CM15: 0 | CS15: 0 | CY15: 0 | DE15: 0 | DK15: 0 | DQ15: 0
B16: =Edital!C19 -> 0 | G16: 0 | M16: 0 | S16: 0 | Y16: 0 | AE16: 0 | AK16: 0 | AQ16: 0 | AW16: 0 | BC16: 0 | BI16: 0 | BO16: 0 | BU16: 0 | CA16: 0 | CG16: 0 | CM16: 0 | CS16: 0 | CY16: 0 | DE16: 0 | DK16: 0 | DQ16: 0
B17: =Edital!C20 -> 0 | G17: 0 | M17: 0 | S17: 0 | Y17: 0 | AE17: 0 | AK17: 0 | AQ17: 0 | AW17: 0 | BC17: 0 | BI17: 0 | BO17: 0 | BU17: 0 | CA17: 0 | CG17: 0 | CM17: 0 | CS17: 0 | CY17: 0 | DE17: 0 | DK17: 0 | DQ17: 0
B18: =Edital!C21 -> 0 | G18: 0 | M18: 0 | S18: 0 | Y18: 0 | AE18: 0 | AK18: 0 | AQ18: 0 | AW18: 0 | BC18: 0 | BI18: 0 | BO18: 0 | BU18: 0 | CA18: 0 | CG18: 0 | CM18: 0 | CS18: 0 | CY18: 0 | DE18: 0 | DK18: 0 | DQ18: 0
B19: =Edital!C22 -> 0 | G19: 0 | M19: 0 | S19: 0 | Y19: 0 | AE19: 0 | AK19: 0 | AQ19: 0 | AW19: 0 | BC19: 0 | BI19: 0 | BO19: 0 | BU19: 0 | CA19: 0 | CG19: 0 | CM19: 0 | CS19: 0 | CY19: 0 | DE19: 0 | DK19: 0 | DQ19: 0
B20: =Edital!C23 -> 0 | G20: 0 | M20: 0 | S20: 0 | Y20: 0 | AE20: 0 | AK20: 0 | AQ20: 0 | AW20: 0 | BC20: 0 | BI20: 0 | BO20: 0 | BU20: 0 | CA20: 0 | CG20: 0 | CM20: 0 | CS20: 0 | CY20: 0 | DE20: 0 | DK20: 0 | DQ20: 0
B21: =Edital!C24 -> 0 | G21: 0 | M21: 0 | S21: 0 | Y21: 0 | AE21: 0 | AK21: 0 | AQ21: 0 | AW21: 0 | BC21: 0 | BI21: 0 | BO21: 0 | BU21: 0 | CA21: 0 | CG21: 0 | CM21: 0 | CS21: 0 | CY21: 0 | DE21: 0 | DK21: 0 | DQ21: 0
B22: =Edital!C25 -> 0 | G22: 0 | M22: 0 | S22: 0 | Y22: 0 | AE22: 0 | AK22: 0 | AQ22: 0 | AW22: 0 | BC22: 0 | BI22: 0 | BO22: 0 | BU22: 0 | CA22: 0 | CG22: 0 | CM22: 0 | CS22: 0 | CY22: 0 | DE22: 0 | DK22: 0 | DQ22: 0
B23: =Edital!C26 -> 0 | G23: 0 | M23: 0 | S23: 0 | Y23: 0 | AE23: 0 | AK23: 0 | AQ23: 0 | AW23: 0 | BC23: 0 | BI23: 0 | BO23: 0 | BU23: 0 | CA23: 0 | CG23: 0 | CM23: 0 | CS23: 0 | CY23: 0 | DE23: 0 | DK23: 0 | DQ23: 0
B24: =Edital!C27 -> 0 | G24: 0 | M24: 0 | S24: 0 | Y24: 0 | AE24: 0 | AK24: 0 | AQ24: 0 | AW24: 0 | BC24: 0 | BI24: 0 | BO24: 0 | BU24: 0 | CA24: 0 | CG24: 0 | CM24: 0 | CS24: 0 | CY24: 0 | DE24: 0 | DK24: 0 | DQ24: 0
B25: =Edital!C28 -> 0 | G25: 0 | M25: 0 | S25: 0 | Y25: 0 | AE25: 0 | AK25: 0 | AQ25: 0 | AW25: 0 | BC25: 0 | BI25: 0 | BO25: 0 | BU25: 0 | CA25: 0 | CG25: 0 | CM25: 0 | CS25: 0 | CY25: 0 | DE25: 0 | DK25: 0 | DQ25: 0
B26: =Edital!C29 -> 0 | G26: 0 | M26: 0 | S26: 0 | Y26: 0 | AE26: 0 | AK26: 0 | AQ26: 0 | AW26: 0 | BC26: 0 | BI26: 0 | BO26: 0 | BU26: 0 | CA26: 0 | CG26: 0 | CM26: 0 | CS26: 0 | CY26: 0 | DE26: 0 | DK26: 0 | DQ26: 0
B27: =Edital!C30 -> 0 | G27: 0 | M27: 0 | S27: 0 | Y27: 0 | AE27: 0 | AK27: 0 | AQ27: 0 | AW27: 0 | BC27: 0 | BI27: 0 | BO27: 0 | BU27: 0 | CA27: 0 | CG27: 0 | CM27: 0 | CS27: 0 | CY27: 0 | DE27: 0 | DK27: 0 | DQ27: 0
B28: =Edital!C31 -> 0 | G28: 0 | M28: 0 | S28: 0 | Y28: 0 | AE28: 0 | AK28: 0 | AQ28: 0 | AW28: 0 | BC28: 0 | BI28: 0 | BO28: 0 | BU28: 0 | CA28: 0 | CG28: 0 | CM28: 0 | CS28: 0 | CY28: 0 | DE28: 0 | DK28: 0 | DQ28: 0
B29: =Edital!C32 -> 0 | G29: 0 | M29: 0 | S29: 0 | Y29: 0 | AE29: 0 | AK29: 0 | AQ29: 0 | AW29: 0 | BC29: 0 | BI29: 0 | BO29: 0 | BU29: 0 | CA29: 0 | CG29: 0 | CM29: 0 | CS29: 0 | CY29: 0 | DE29: 0 | DK29: 0 | DQ29: 0
B30: =Edital!C33 -> 0 | G30: 0 | M30: 0 | S30: 0 | Y30: 0 | AE30: 0 | AK30: 0 | AQ30: 0 | AW30: 0 | BC30: 0 | BI30: 0 | BO30: 0 | BU30: 0 | CA30: 0 | CG30: 0 | CM30: 0 | CS30: 0 | CY30: 0 | DE30: 0 | DK30: 0 | DQ30: 0
B31: =Edital!C34 -> 0 | G31: 0 | M31: 0 | S31: 0 | Y31: 0 | AE31: 0 | AK31: 0 | AQ31: 0 | AW31: 0 | BC31: 0 | BI31: 0 | BO31: 0 | BU31: 0 | CA31: 0 | CG31: 0 | CM31: 0 | CS31: 0 | CY31: 0 | DE31: 0 | DK31: 0 | DQ31: 0
B32: Totais | D32: =SUM(D12:D31) -> 0 | E32: =SUM(E12:E31) -> 0 | F32: =SUM(F12:F31) -> 0 | G32: =SUM(G12:G31) -> 0 | J32: =SUM(J12:J31) -> 0 | K32: =SUM(K12:K31) -> 0 | L32: =SUM(L12:L31) -> 0 | M32: =SUM(M12:M31) -> 0 | P32: =SUM(P12:P31) -> 0 | Q32: =SUM(Q12:Q31) -> 0 | R32: =SUM(R12:R31) -> 0 | S32: =SUM(S12:S31) -> 0 | V32: =SUM(V12:V31) -> 0 | W32: =SUM(W12:W31) -> 0 | X32: =SUM(X12:X31) -> 0 | Y32: =SUM(Y12:Y31) -> 0 | AB32: =SUM(AB12:AB31) -> 0 | AC32: =SUM(AC12:AC31) -> 0 | AD32: =SUM(AD12:AD31) -> 0 | AE32: =SUM(AE12:AE31) -> 0 | AH32: =SUM(AH12:AH31) -> 0 | AI32: =SUM(AI12:AI31) -> 0 | AJ32: =SUM(AJ12:AJ31) -> 0 | AK32: =SUM(AK12:AK31) -> 0 | AN32: =SUM(AN12:AN31) -> 0 | AO32: =SUM(AO12:AO31) -> 0 | AP32: =SUM(AP12:AP31) -> 0 | AQ32: =SUM(AQ12:AQ31) -> 0 | AT32: =SUM(AT12:AT31) -> 0 | AU32: =SUM(AU12:AU31) -> 0 | AV32: =SUM(AV12:AV31) -> 0 | AW32: =SUM(AW12:AW31) -> 0 | AZ32: =SUM(AZ12:AZ31) -> 0 | BA32: =SUM(BA12:BA31) -> 0 | BB32: =SUM(BB12:BB31) -> 0 | BC32: =SUM(BC12:BC31) -> 0 | BF32: =SUM(BF12:BF31) -> 0 | BG32: =SUM(BG12:BG31) -> 0 | BH32: =SUM(BH12:BH31) -> 0 | BI32: =SUM(BI12:BI31) -> 0 | BL32: =SUM(BL12:BL31) -> 0 | BM32: =SUM(BM12:BM31) -> 0 | BN32: =SUM(BN12:BN31) -> 0 | BO32: =SUM(BO12:BO31) -> 0 | BR32: =SUM(BR12:BR31) -> 0 | BS32: =SUM(BS12:BS31) -> 0 | BT32: =SUM(BT12:BT31) -> 0 | BU32: =SUM(BU12:BU31) -> 0 | BX32: =SUM(BX12:BX31) -> 0 | BY32: =SUM(BY12:BY31) -> 0 | BZ32: =SUM(BZ12:BZ31) -> 0 | CA32: =SUM(CA12:CA31) -> 0 | CD32: =SUM(CD12:CD31) -> 0 | CE32: =SUM(CE12:CE31) -> 0 | CF32: =SUM(CF12:CF31) -> 0 | CG32: =SUM(CG12:CG31) -> 0 | CJ32: =SUM(CJ12:CJ31) -> 0 | CK32: =SUM(CK12:CK31) -> 0 | CL32: =SUM(CL12:CL31) -> 0 | CM32: =SUM(CM12:CM31) -> 0 | CP32: =SUM(CP12:CP31) -> 0 | CQ32: =SUM(CQ12:CQ31) -> 0 | CR32: =SUM(CR12:CR31) -> 0 | CS32: =SUM(CS12:CS31) -> 0 | CV32: =SUM(CV12:CV31) -> 0 | CW32: =SUM(CW12:CW31) -> 0 | CX32: =SUM(CX12:CX31) -> 0 | CY32: =SUM(CY12:CY31) -> 0 | DB32: =SUM(DB12:DB31) -> 0 | DC32: =SUM(DC12:DC31) -> 0 | DD32: =SUM(DD12:DD31) -> 0 | DE32: =SUM(DE12:DE31) -> 0 | DH32: =SUM(DH12:DH31) -> 0 | DI32: =SUM(DI12:DI31) -> 0 | DJ32: =SUM(DJ12:DJ31) -> 0 | DK32: =SUM(DK12:DK31) -> 0 | DN32: =SUM(DN12:DN31) -> 0 | DO32: =SUM(DO12:DO31) -> 0 | DP32: =SUM(DP12:DP31) -> 0 | DQ32: =SUM(DQ12:DQ31) -> 0
D36: M1 | E36: =IFERROR(E32/D32,"") ->  | J36: M1 | K36: =IFERROR(K32/J32,"") ->  | P36: M1 | Q36: =IFERROR(Q32/P32,"") ->  | V36: M1 | W36: =IFERROR(W32/V32,"") ->  | AB36: M1 | AC36: =IFERROR(AC32/AB32,"") ->  | AH36: M1 | AI36: =IFERROR(AI32/AH32,"") ->  | AN36: M1 | AO36: =IFERROR(AO32/AN32,"") ->  | AT36: M1 | AU36: =IFERROR(AU32/AT32,"") ->  | AZ36: M1 | BA36: =IFERROR(BA32/AZ32,"") ->  | BF36: M1 | BG36: =IFERROR(BG32/BF32,"") ->  | BL36: M1 | BM36: =IFERROR(BM32/BL32,"") ->  | BR36: M1 | BS36: =IFERROR(BS32/BR32,"") ->  | BX36: M1 | BY36: =IFERROR(BY32/BX32,"") ->  | CD36: M1 | CE36: =IFERROR(CE32/CD32,"") ->  | CJ36: M1 | CK36: =IFERROR(CK32/CJ32,"") ->  | CP36: M1 | CQ36: =IFERROR(CQ32/CP32,"") ->  | CV36: M1 | CW36: =IFERROR(CW32/CV32,"") ->  | DB36: M1 | DC36: =IFERROR(DC32/DB32,"") ->  | DH36: M1 | DI36: =IFERROR(DI32/DH32,"") ->  | DN36: M1 | DO36: =IFERROR(DO32/DN32,"") -> 
D37: M2 | E37: =IFERROR(F37/D32,"") ->  | F37: =IFERROR(D32-F32-(G32*2),"") -> 0 | J37: M2 | K37: =IFERROR(L37/J32,"") ->  | L37: =IFERROR(J32-L32-(M32*2),"") -> 0 | P37: M2 | Q37: =IFERROR(R37/P32,"") ->  | R37: =IFERROR(P32-R32-(S32*2),"") -> 0 | V37: M2 | W37: =IFERROR(X37/V32,"") ->  | X37: =IFERROR(V32-X32-(Y32*2),"") -> 0 | AB37: M2 | AC37: =IFERROR(AD37/AB32,"") ->  | AD37: =IFERROR(AB32-AD32-(AE32*2),"") -> 0 | AH37: M2 | AI37: =IFERROR(AJ37/AH32,"") ->  | AJ37: =IFERROR(AH32-AJ32-(AK32*2),"") -> 0 | AN37: M2 | AO37: =IFERROR(AP37/AN32,"") ->  | AP37: =IFERROR(AN32-AP32-(AQ32*2),"") -> 0 | AT37: M2 | AU37: =IFERROR(AV37/AT32,"") ->  | AV37: =IFERROR(AT32-AV32-(AW32*2),"") -> 0 | AZ37: M2 | BA37: =IFERROR(BB37/AZ32,"") ->  | BB37: =IFERROR(AZ32-BB32-(BC32*2),"") -> 0 | BF37: M2 | BG37: =IFERROR(BH37/BF32,"") ->  | BH37: =IFERROR(BF32-BH32-(BI32*2),"") -> 0 | BL37: M2 | BM37: =IFERROR(BN37/BL32,"") ->  | BN37: =IFERROR(BL32-BN32-(BO32*2),"") -> 0 | BR37: M2 | BS37: =IFERROR(BT37/BR32,"") ->  | BT37: =IFERROR(BR32-BT32-(BU32*2),"") -> 0 | BX37: M2 | BY37: =IFERROR(BZ37/BX32,"") ->  | BZ37: =IFERROR(BX32-BZ32-(CA32*2),"") -> 0 | CD37: M2 | CE37: =IFERROR(CF37/CD32,"") ->  | CF37: =IFERROR(CD32-CF32-(CG32*2),"") -> 0 | CJ37: M2 | CK37: =IFERROR(CL37/CJ32,"") ->  | CL37: =IFERROR(CJ32-CL32-(CM32*2),"") -> 0 | CP37: M2 | CQ37: =IFERROR(CR37/CP32,"") ->  | CR37: =IFERROR(CP32-CR32-(CS32*2),"") -> 0 | CV37: M2 | CW37: =IFERROR(CX37/CV32,"") ->  | CX37: =IFERROR(CV32-CX32-(CY32*2),"") -> 0 | DB37: M2 | DC37: =IFERROR(DD37/DB32,"") ->  | DD37: =IFERROR(DB32-DD32-(DE32*2),"") -> 0 | DH37: M2 | DI37: =IFERROR(DJ37/DH32,"") ->  | DJ37: =IFERROR(DH32-DJ32-(DK32*2),"") -> 0 | DN37: M2 | DO37: =IFERROR(DP37/DN32,"") ->  | DP37: =IFERROR(DN32-DP32-(DQ32*2),"") -> 0

Sheet Videoaulas
B4: Legenda | C4: A = Videoaula assistida | G4: P = Videoaula pendente
B6: Aula | C6: =Edital!E15 -> PORT | D6: =Edital!E16 -> RLM | E6: =Edital!E17 -> INFO | F6: =Edital!E18 -> 0 | G6: =Edital!E19 -> 0 | H6: =Edital!E20 -> 0 | I6: =Edital!E21 -> 0 | J6: =Edital!E22 -> 0 | K6: =Edital!E23 -> 0 | L6: =Edital!E24 -> 0 | M6: =Edital!E25 -> 0 | N6: =Edital!E26 -> 0 | O6: =Edital!E27 -> 0 | P6: =Edital!E28 -> 0 | Q6: =Edital!E29 -> 0 | R6: =Edital!E30 -> 0 | S6: =Edital!E31 -> 0 | T6: =Edital!E32 -> 0 | U6: =Edital!E33 -> 0 | V6: =Edital!E34 -> 0
B7: Aula 01 | C7: Sim | D7: Sim | E7: Sim | F7: Sim | Z7: =COUNTA(C7:V156) -> 36
B8: Aula 02 | C8: Sim | D8: Sim | E8: Sim | F8: Não | Z8: =COUNTIF(C7:V156,"Sim") -> 9
B9: Aula 03 | C9: Sim | D9: Sim | E9: Não | F9: Não | Z9: =Z7-Z8 -> 27
B10: Aula 04 | C10: Não | D10: Não | E10: Não | F10: Não
B11: Aula 05 | C11: Não | D11: Não | E11: Não | F11: Não
B12: Aula 06 | C12: Não | D12: Não | E12: Não | F12: Não
B13: Aula 07 | C13: Não | D13: Não | E13: Não | F13: Não
B14: Aula 08 | D14: Não | E14: Não
B15: Aula 09 | D15: Não | E15: Não
B16: Aula 10 | D16: Não | E16: Não
B17: Aula 11 | D17: Não
B18: Aula 12 | D18: Não
B19: Aula 13
B20: Aula 14
B21: Aula 15
B22: Aula 16
B23: Aula 17
B24: Aula 18
B25: Aula 19
B26: Aula 20

Sheet Leitura
B5: Matérias | C5: Descrição | D5: Págs | E5: Atual | F5: Progresso | G5: Observações
B6: LÍNGUA PORTUGUESA | C6: PDF ESTRATÉGIA CONCURSOS - AULA 03 | D6: 180 | E6: 120 | F6: =IFERROR(Tabela3[[#This Row],[Atual]]/Tabela3[[#This Row],[Págs]],"") -> 67%
B7: RACIOCÍNIO LÓGICO MATEMÁTICO | C7: LIVRO - SÉRGIO CARVALHO | D7: 120 | E7: 120 | F7: =IFERROR(Tabela3[[#This Row],[Atual]]/Tabela3[[#This Row],[Págs]],"") -> 100%
F8: =IFERROR(Tabela3[[#This Row],[Atual]]/Tabela3[[#This Row],[Págs]],"") -> 
F9: =IFERROR(Tabela3[[#This Row],[Atual]]/Tabela3[[#This Row],[Págs]],"") -> 
F10: =IFERROR(Tabela3[[#This Row],[Atual]]/Tabela3[[#This Row],[Págs]],"") -> 
F11: =IFERROR(Tabela3[[#This Row],[Atual]]/Tabela3[[#This Row],[Págs]],"") -> 
F12: =IFERROR(Tabela3[[#This Row],[Atual]]/Tabela3[[#This Row],[Págs]],"") -> 
F13: =IFERROR(Tabela3[[#This Row],[Atual]]/Tabela3[[#This Row],[Págs]],"") -> 
F14: =IFERROR(Tabela3[[#This Row],[Atual]]/Tabela3[[#This Row],[Págs]],"") -> 
F15: =IFERROR(Tabela3[[#This Row],[Atual]]/Tabela3[[#This Row],[Págs]],"") -> 
F16: =IFERROR(Tabela3[[#This Row],[Atual]]/Tabela3[[#This Row],[Págs]],"") -> 
F17: =IFERROR(Tabela3[[#This Row],[Atual]]/Tabela3[[#This Row],[Págs]],"") -> 
F18: =IFERROR(Tabela3[[#This Row],[Atual]]/Tabela3[[#This Row],[Págs]],"") -> 
F19: =IFERROR(Tabela3[[#This Row],[Atual]]/Tabela3[[#This Row],[Págs]],"") -> 
F20: =IFERROR(Tabela3[[#This Row],[Atual]]/Tabela3[[#This Row],[Págs]],"") -> 
F21: =IFERROR(Tabela3[[#This Row],[Atual]]/Tabela3[[#This Row],[Págs]],"") -> 
F22: =IFERROR(Tabela3[[#This Row],[Atual]]/Tabela3[[#This Row],[Págs]],"") -> 
F23: =IFERROR(Tabela3[[#This Row],[Atual]]/Tabela3[[#This Row],[Págs]],"") -> 
F24: =IFERROR(Tabela3[[#This Row],[Atual]]/Tabela3[[#This Row],[Págs]],"") -> 
F25: =IFERROR(Tabela3[[#This Row],[Atual]]/Tabela3[[#This Row],[Págs]],"") -> 
F26: =IFERROR(Tabela3[[#This Row],[Atual]]/Tabela3[[#This Row],[Págs]],"") -> 
F27: =IFERROR(Tabela3[[#This Row],[Atual]]/Tabela3[[#This Row],[Págs]],"") -> 
F28: =IFERROR(Tabela3[[#This Row],[Atual]]/Tabela3[[#This Row],[Págs]],"") -> 
F29: =IFERROR(Tabela3[[#This Row],[Atual]]/Tabela3[[#This Row],[Págs]],"") -> 
F30: =IFERROR(Tabela3[[#This Row],[Atual]]/Tabela3[[#This Row],[Págs]],"") -> 
F31: =IFERROR(Tabela3[[#This Row],[Atual]]/Tabela3[[#This Row],[Págs]],"") -> 
F32: =IFERROR(Tabela3[[#This Row],[Atual]]/Tabela3[[#This Row],[Págs]],"") -> 
F33: =IFERROR(Tabela3[[#This Row],[Atual]]/Tabela3[[#This Row],[Págs]],"") -> 
F34: =IFERROR(Tabela3[[#This Row],[Atual]]/Tabela3[[#This Row],[Págs]],"") -> 
F35: =IFERROR(Tabela3[[#This Row],[Atual]]/Tabela3[[#This Row],[Págs]],"") -> 
F36: =IFERROR(Tabela3[[#This Row],[Atual]]/Tabela3[[#This Row],[Págs]],"") -> 
F37: =IFERROR(Tabela3[[#This Row],[Atual]]/Tabela3[[#This Row],[Págs]],"") -> 
F38: =IFERROR(Tabela3[[#This Row],[Atual]]/Tabela3[[#This Row],[Págs]],"") -> 
F39: =IFERROR(Tabela3[[#This Row],[Atual]]/Tabela3[[#This Row],[Págs]],"") -> 
F40: =IFERROR(Tabela3[[#This Row],[Atual]]/Tabela3[[#This Row],[Págs]],"") -> 
F41: =IFERROR(Tabela3[[#This Row],[Atual]]/Tabela3[[#This Row],[Págs]],"") -> 
F42: =IFERROR(Tabela3[[#This Row],[Atual]]/Tabela3[[#This Row],[Págs]],"") -> 
F43: =IFERROR(Tabela3[[#This Row],[Atual]]/Tabela3[[#This Row],[Págs]],"") -> 
F44: =IFERROR(Tabela3[[#This Row],[Atual]]/Tabela3[[#This Row],[Págs]],"") -> 
F45: =IFERROR(Tabela3[[#This Row],[Atual]]/Tabela3[[#This Row],[Págs]],"") -> 
F46: =IFERROR(Tabela3[[#This Row],[Atual]]/Tabela3[[#This Row],[Págs]],"") -> 
F47: =IFERROR(Tabela3[[#This Row],[Atual]]/Tabela3[[#This Row],[Págs]],"") -> 
F48: =IFERROR(Tabela3[[#This Row],[Atual]]/Tabela3[[#This Row],[Págs]],"") -> 
F49: =IFERROR(Tabela3[[#This Row],[Atual]]/Tabela3[[#This Row],[Págs]],"") -> 
F50: =IFERROR(Tabela3[[#This Row],[Atual]]/Tabela3[[#This Row],[Págs]],"") -> 
F51: =IFERROR(Tabela3[[#This Row],[Atual]]/Tabela3[[#This Row],[Págs]],"") -> 
F52: =IFERROR(Tabela3[[#This Row],[Atual]]/Tabela3[[#This Row],[Págs]],"") -> 
F53: =IFERROR(Tabela3[[#This Row],[Atual]]/Tabela3[[#This Row],[Págs]],"") -> 
F54: =IFERROR(Tabela3[[#This Row],[Atual]]/Tabela3[[#This Row],[Págs]],"") -> 
F55: =IFERROR(Tabela3[[#This Row],[Atual]]/Tabela3[[#This Row],[Págs]],"") -> 
F56: =IFERROR(Tabela3[[#This Row],[Atual]]/Tabela3[[#This Row],[Págs]],"") -> 
F57: =IFERROR(Tabela3[[#This Row],[Atual]]/Tabela3[[#This Row],[Págs]],"") -> 
F58: =IFERROR(Tabela3[[#This Row],[Atual]]/Tabela3[[#This Row],[Págs]],"") -> 
F59: =IFERROR(Tabela3[[#This Row],[Atual]]/Tabela3[[#This Row],[Págs]],"") -> 
F60: =IFERROR(Tabela3[[#This Row],[Atual]]/Tabela3[[#This Row],[Págs]],"") -> 
F61: =IFERROR(Tabela3[[#This Row],[Atual]]/Tabela3[[#This Row],[Págs]],"") -> 
F62: =IFERROR(Tabela3[[#This Row],[Atual]]/Tabela3[[#This Row],[Págs]],"") -> 
F63: =IFERROR(Tabela3[[#This Row],[Atual]]/Tabela3[[#This Row],[Págs]],"") -> 
F64: =IFERROR(Tabela3[[#This Row],[Atual]]/Tabela3[[#This Row],[Págs]],"") -> 
F65: =IFERROR(Tabela3[[#This Row],[Atual]]/Tabela3[[#This Row],[Págs]],"") -> 
F66: =IFERROR(Tabela3[[#This Row],[Atual]]/Tabela3[[#This Row],[Págs]],"") -> 
F67: =IFERROR(Tabela3[[#This Row],[Atual]]/Tabela3[[#This Row],[Págs]],"") -> 
F68: =IFERROR(Tabela3[[#This Row],[Atual]]/Tabela3[[#This Row],[Págs]],"") -> 
F69: =IFERROR(Tabela3[[#This Row],[Atual]]/Tabela3[[#This Row],[Págs]],"") -> 
F70: =IFERROR(Tabela3[[#This Row],[Atual]]/Tabela3[[#This Row],[Págs]],"") -> 
F71: =IFERROR(Tabela3[[#This Row],[Atual]]/Tabela3[[#This Row],[Págs]],"") -> 
F72: =IFERROR(Tabela3[[#This Row],[Atual]]/Tabela3[[#This Row],[Págs]],"") -> 
F73: =IFERROR(Tabela3[[#This Row],[Atual]]/Tabela3[[#This Row],[Págs]],"") -> 
F74: =IFERROR(Tabela3[[#This Row],[Atual]]/Tabela3[[#This Row],[Págs]],"") -> 
F75: =IFERROR(Tabela3[[#This Row],[Atual]]/Tabela3[[#This Row],[Págs]],"") -> 
F76: =IFERROR(Tabela3[[#This Row],[Atual]]/Tabela3[[#This Row],[Págs]],"") -> 
F77: =IFERROR(Tabela3[[#This Row],[Atual]]/Tabela3[[#This Row],[Págs]],"") -> 
F78: =IFERROR(Tabela3[[#This Row],[Atual]]/Tabela3[[#This Row],[Págs]],"") -> 
F79: =IFERROR(Tabela3[[#This Row],[Atual]]/Tabela3[[#This Row],[Págs]],"") -> 
F80: =IFERROR(Tabela3[[#This Row],[Atual]]/Tabela3[[#This Row],[Págs]],"") -> 
F81: =IFERROR(Tabela3[[#This Row],[Atual]]/Tabela3[[#This Row],[Págs]],"") -> 
F82: =IFERROR(Tabela3[[#This Row],[Atual]]/Tabela3[[#This Row],[Págs]],"") -> 
F83: =IFERROR(Tabela3[[#This Row],[Atual]]/Tabela3[[#This Row],[Págs]],"") -> 
F84: =IFERROR(Tabela3[[#This Row],[Atual]]/Tabela3[[#This Row],[Págs]],"") -> 
F85: =IFERROR(Tabela3[[#This Row],[Atual]]/Tabela3[[#This Row],[Págs]],"") -> 
F86: =IFERROR(Tabela3[[#This Row],[Atual]]/Tabela3[[#This Row],[Págs]],"") -> 
F87: =IFERROR(Tabela3[[#This Row],[Atual]]/Tabela3[[#This Row],[Págs]],"") -> 
F88: =IFERROR(Tabela3[[#This Row],[Atual]]/Tabela3[[#This Row],[Págs]],"") -> 
F89: =IFERROR(Tabela3[[#This Row],[Atual]]/Tabela3[[#This Row],[Págs]],"") -> 
F90: =IFERROR(Tabela3[[#This Row],[Atual]]/Tabela3[[#This Row],[Págs]],"") -> 
F91: =IFERROR(Tabela3[[#This Row],[Atual]]/Tabela3[[#This Row],[Págs]],"") -> 
F92: =IFERROR(Tabela3[[#This Row],[Atual]]/Tabela3[[#This Row],[Págs]],"") -> 
F93: =IFERROR(Tabela3[[#This Row],[Atual]]/Tabela3[[#This Row],[Págs]],"") -> 
F94: =IFERROR(Tabela3[[#This Row],[Atual]]/Tabela3[[#This Row],[Págs]],"") -> 
F95: =IFERROR(Tabela3[[#This Row],[Atual]]/Tabela3[[#This Row],[Págs]],"") -> 
F96: =IFERROR(Tabela3[[#This Row],[Atual]]/Tabela3[[#This Row],[Págs]],"") -> 
F97: =IFERROR(Tabela3[[#This Row],[Atual]]/Tabela3[[#This Row],[Págs]],"") -> 
F98: =IFERROR(Tabela3[[#This Row],[Atual]]/Tabela3[[#This Row],[Págs]],"") -> 
F99: =IFERROR(Tabela3[[#This Row],[Atual]]/Tabela3[[#This Row],[Págs]],"") -> 
F100: =IFERROR(Tabela3[[#This Row],[Atual]]/Tabela3[[#This Row],[Págs]],"") -> 
F101: =IFERROR(Tabela3[[#This Row],[Atual]]/Tabela3[[#This Row],[Págs]],"") -> 
F102: =IFERROR(Tabela3[[#This Row],[Atual]]/Tabela3[[#This Row],[Págs]],"") -> 
F103: =IFERROR(Tabela3[[#This Row],[Atual]]/Tabela3[[#This Row],[Págs]],"") -> 
F104: =IFERROR(Tabela3[[#This Row],[Atual]]/Tabela3[[#This Row],[Págs]],"") -> 
F105: =IFERROR(Tabela3[[#This Row],[Atual]]/Tabela3[[#This Row],[Págs]],"") -> 
F106: =IFERROR(Tabela3[[#This Row],[Atual]]/Tabela3[[#This Row],[Págs]],"") -> 
F107: =IFERROR(Tabela3[[#This Row],[Atual]]/Tabela3[[#This Row],[Págs]],"") -> 
F108: =IFERROR(Tabela3[[#This Row],[Atual]]/Tabela3[[#This Row],[Págs]],"") -> 
F109: =IFERROR(Tabela3[[#This Row],[Atual]]/Tabela3[[#This Row],[Págs]],"") -> 
F110: =IFERROR(Tabela3[[#This Row],[Atual]]/Tabela3[[#This Row],[Págs]],"") -> 
F111: =IFERROR(Tabela3[[#This Row],[Atual]]/Tabela3[[#This Row],[Págs]],"") -> 
F112: =IFERROR(Tabela3[[#This Row],[Atual]]/Tabela3[[#This Row],[Págs]],"") -> 
F113: =IFERROR(Tabela3[[#This Row],[Atual]]/Tabela3[[#This Row],[Págs]],"") -> 
F114: =IFERROR(Tabela3[[#This Row],[Atual]]/Tabela3[[#This Row],[Págs]],"") -> 
F115: =IFERROR(Tabela3[[#This Row],[Atual]]/Tabela3[[#This Row],[Págs]],"") -> 
F116: =IFERROR(Tabela3[[#This Row],[Atual]]/Tabela3[[#This Row],[Págs]],"") -> 
F117: =IFERROR(Tabela3[[#This Row],[Atual]]/Tabela3[[#This Row],[Págs]],"") -> 
F118: =IFERROR(Tabela3[[#This Row],[Atual]]/Tabela3[[#This Row],[Págs]],"") -> 
F119: =IFERROR(Tabela3[[#This Row],[Atual]]/Tabela3[[#This Row],[Págs]],"") -> 
F120: =IFERROR(Tabela3[[#This Row],[Atual]]/Tabela3[[#This Row],[Págs]],"") -> 
F121: =IFERROR(Tabela3[[#This Row],[Atual]]/Tabela3[[#This Row],[Págs]],"") -> 
F122: =IFERROR(Tabela3[[#This Row],[Atual]]/Tabela3[[#This Row],[Págs]],"") -> 
F123: =IFERROR(Tabela3[[#This Row],[Atual]]/Tabela3[[#This Row],[Págs]],"") -> 
F124: =IFERROR(Tabela3[[#This Row],[Atual]]/Tabela3[[#This Row],[Págs]],"") -> 
F125: =IFERROR(Tabela3[[#This Row],[Atual]]/Tabela3[[#This Row],[Págs]],"") -> 
F126: =IFERROR(Tabela3[[#This Row],[Atual]]/Tabela3[[#This Row],[Págs]],"") -> 
F127: =IFERROR(Tabela3[[#This Row],[Atual]]/Tabela3[[#This Row],[Págs]],"") -> 
F128: =IFERROR(Tabela3[[#This Row],[Atual]]/Tabela3[[#This Row],[Págs]],"") -> 
F129: =IFERROR(Tabela3[[#This Row],[Atual]]/Tabela3[[#This Row],[Págs]],"") -> 
F130: =IFERROR(Tabela3[[#This Row],[Atual]]/Tabela3[[#This Row],[Págs]],"") -> 
F131: =IFERROR(Tabela3[[#This Row],[Atual]]/Tabela3[[#This Row],[Págs]],"") -> 
F132: =IFERROR(Tabela3[[#This Row],[Atual]]/Tabela3[[#This Row],[Págs]],"") -> 
F133: =IFERROR(Tabela3[[#This Row],[Atual]]/Tabela3[[#This Row],[Págs]],"") -> 
F134: =IFERROR(Tabela3[[#This Row],[Atual]]/Tabela3[[#This Row],[Págs]],"") -> 
F135: =IFERROR(Tabela3[[#This Row],[Atual]]/Tabela3[[#This Row],[Págs]],"") -> 
F136: =IFERROR(Tabela3[[#This Row],[Atual]]/Tabela3[[#This Row],[Págs]],"") -> 
F137: =IFERROR(Tabela3[[#This Row],[Atual]]/Tabela3[[#This Row],[Págs]],"") -> 
F138: =IFERROR(Tabela3[[#This Row],[Atual]]/Tabela3[[#This Row],[Págs]],"") -> 
F139: =IFERROR(Tabela3[[#This Row],[Atual]]/Tabela3[[#This Row],[Págs]],"") -> 
F140: =IFERROR(Tabela3[[#This Row],[Atual]]/Tabela3[[#This Row],[Págs]],"") -> 
F141: =IFERROR(Tabela3[[#This Row],[Atual]]/Tabela3[[#This Row],[Págs]],"") -> 
F142: =IFERROR(Tabela3[[#This Row],[Atual]]/Tabela3[[#This Row],[Págs]],"") -> 
F143: =IFERROR(Tabela3[[#This Row],[Atual]]/Tabela3[[#This Row],[Págs]],"") -> 
F144: =IFERROR(Tabela3[[#This Row],[Atual]]/Tabela3[[#This Row],[Págs]],"") -> 
F145: =IFERROR(Tabela3[[#This Row],[Atual]]/Tabela3[[#This Row],[Págs]],"") -> 
F146: =IFERROR(Tabela3[[#This Row],[Atual]]/Tabela3[[#This Row],[Págs]],"") -> 
F147: =IFERROR(Tabela3[[#This Row],[Atual]]/Tabela3[[#This Row],[Págs]],"") -> 
F148: =IFERROR(Tabela3[[#This Row],[Atual]]/Tabela3[[#This Row],[Págs]],"") -> 
F149: =IFERROR(Tabela3[[#This Row],[Atual]]/Tabela3[[#This Row],[Págs]],"") -> 
F150: =IFERROR(Tabela3[[#This Row],[Atual]]/Tabela3[[#This Row],[Págs]],"") -> 
F151: =IFERROR(Tabela3[[#This Row],[Atual]]/Tabela3[[#This Row],[Págs]],"") -> 
F152: =IFERROR(Tabela3[[#This Row],[Atual]]/Tabela3[[#This Row],[Págs]],"") -> 
F153: =IFERROR(Tabela3[[#This Row],[Atual]]/Tabela3[[#This Row],[Págs]],"") -> 
F154: =IFERROR(Tabela3[[#This Row],[Atual]]/Tabela3[[#This Row],[Págs]],"") -> 
F155: =IFERROR(Tabela3[[#This Row],[Atual]]/Tabela3[[#This Row],[Págs]],"") -> 
F156: =IFERROR(Tabela3[[#This Row],[Atual]]/Tabela3[[#This Row],[Págs]],"") -> 
F157: =IFERROR(Tabela3[[#This Row],[Atual]]/Tabela3[[#This Row],[Págs]],"") -> 
F158: =IFERROR(Tabela3[[#This Row],[Atual]]/Tabela3[[#This Row],[Págs]],"") -> 
F159: =IFERROR(Tabela3[[#This Row],[Atual]]/Tabela3[[#This Row],[Págs]],"") -> 
F160: =IFERROR(Tabela3[[#This Row],[Atual]]/Tabela3[[#This Row],[Págs]],"") -> 
F161: =IFERROR(Tabela3[[#This Row],[Atual]]/Tabela3[[#This Row],[Págs]],"") -> 
F162: =IFERROR(Tabela3[[#This Row],[Atual]]/Tabela3[[#This Row],[Págs]],"") -> 
F163: =IFERROR(Tabela3[[#This Row],[Atual]]/Tabela3[[#This Row],[Págs]],"") -> 
F164: =IFERROR(Tabela3[[#This Row],[Atual]]/Tabela3[[#This Row],[Págs]],"") -> 
F165: =IFERROR(Tabela3[[#This Row],[Atual]]/Tabela3[[#This Row],[Págs]],"") -> 
F166: =IFERROR(Tabela3[[#This Row],[Atual]]/Tabela3[[#This Row],[Págs]],"") -> 
F167: =IFERROR(Tabela3[[#This Row],[Atual]]/Tabela3[[#This Row],[Págs]],"") -> 
F168: =IFERROR(Tabela3[[#This Row],[Atual]]/Tabela3[[#This Row],[Págs]],"") -> 
F169: =IFERROR(Tabela3[[#This Row],[Atual]]/Tabela3[[#This Row],[Págs]],"") -> 
F170: =IFERROR(Tabela3[[#This Row],[Atual]]/Tabela3[[#This Row],[Págs]],"") -> 
F171: =IFERROR(Tabela3[[#This Row],[Atual]]/Tabela3[[#This Row],[Págs]],"") -> 
F172: =IFERROR(Tabela3[[#This Row],[Atual]]/Tabela3[[#This Row],[Págs]],"") -> 
F173: =IFERROR(Tabela3[[#This Row],[Atual]]/Tabela3[[#This Row],[Págs]],"") -> 
F174: =IFERROR(Tabela3[[#This Row],[Atual]]/Tabela3[[#This Row],[Págs]],"") -> 
F175: =IFERROR(Tabela3[[#This Row],[Atual]]/Tabela3[[#This Row],[Págs]],"") -> 
F176: =IFERROR(Tabela3[[#This Row],[Atual]]/Tabela3[[#This Row],[Págs]],"") -> 
F177: =IFERROR(Tabela3[[#This Row],[Atual]]/Tabela3[[#This Row],[Págs]],"") -> 
F178: =IFERROR(Tabela3[[#This Row],[Atual]]/Tabela3[[#This Row],[Págs]],"") -> 
F179: =IFERROR(Tabela3[[#This Row],[Atual]]/Tabela3[[#This Row],[Págs]],"") -> 
F180: =IFERROR(Tabela3[[#This Row],[Atual]]/Tabela3[[#This Row],[Págs]],"") -> 
F181: =IFERROR(Tabela3[[#This Row],[Atual]]/Tabela3[[#This Row],[Págs]],"") -> 
F182: =IFERROR(Tabela3[[#This Row],[Atual]]/Tabela3[[#This Row],[Págs]],"") -> 
F183: =IFERROR(Tabela3[[#This Row],[Atual]]/Tabela3[[#This Row],[Págs]],"") -> 
F184: =IFERROR(Tabela3[[#This Row],[Atual]]/Tabela3[[#This Row],[Págs]],"") -> 
F185: =IFERROR(Tabela3[[#This Row],[Atual]]/Tabela3[[#This Row],[Págs]],"") -> 
F186: =IFERROR(Tabela3[[#This Row],[Atual]]/Tabela3[[#This Row],[Págs]],"") -> 
F187: =IFERROR(Tabela3[[#This Row],[Atual]]/Tabela3[[#This Row],[Págs]],"") -> 
F188: =IFERROR(Tabela3[[#This Row],[Atual]]/Tabela3[[#This Row],[Págs]],"") -> 
F189: =IFERROR(Tabela3[[#This Row],[Atual]]/Tabela3[[#This Row],[Págs]],"") -> 
F190: =IFERROR(Tabela3[[#This Row],[Atual]]/Tabela3[[#This Row],[Págs]],"") -> 
F191: =IFERROR(Tabela3[[#This Row],[Atual]]/Tabela3[[#This Row],[Págs]],"") -> 
F192: =IFERROR(Tabela3[[#This Row],[Atual]]/Tabela3[[#This Row],[Págs]],"") -> 
F193: =IFERROR(Tabela3[[#This Row],[Atual]]/Tabela3[[#This Row],[Págs]],"") -> 
F194: =IFERROR(Tabela3[[#This Row],[Atual]]/Tabela3[[#This Row],[Págs]],"") -> 
F195: =IFERROR(Tabela3[[#This Row],[Atual]]/Tabela3[[#This Row],[Págs]],"") -> 
F196: =IFERROR(Tabela3[[#This Row],[Atual]]/Tabela3[[#This Row],[Págs]],"") -> 
F197: =IFERROR(Tabela3[[#This Row],[Atual]]/Tabela3[[#This Row],[Págs]],"") -> 
F198: =IFERROR(Tabela3[[#This Row],[Atual]]/Tabela3[[#This Row],[Págs]],"") -> 
F199: =IFERROR(Tabela3[[#This Row],[Atual]]/Tabela3[[#This Row],[Págs]],"") -> 
F200: =IFERROR(Tabela3[[#This Row],[Atual]]/Tabela3[[#This Row],[Págs]],"") -> 
F201: =IFERROR(Tabela3[[#This Row],[Atual]]/Tabela3[[#This Row],[Págs]],"") -> 
F202: =IFERROR(Tabela3[[#This Row],[Atual]]/Tabela3[[#This Row],[Págs]],"") -> 
F203: =IFERROR(Tabela3[[#This Row],[Atual]]/Tabela3[[#This Row],[Págs]],"") -> 
F204: =IFERROR(Tabela3[[#This Row],[Atual]]/Tabela3[[#This Row],[Págs]],"") -> 
... 20 more rows

Sheet ConcursosPrevistos
B5: Concurso | C5: Área | D5: Data prevista* | E5: Banca prevista* | F5: Probabilidade | G5: Minhas anotações
B6: TJSP | C6: JUDICIÁRIO | D6: 2019 | E6: VUNESP | F6: Alta
B7: ICMS | C7: FISCAL | D7: 2019 | E7: ESAF | F7: Média
B8: RFB | C8: FISCAL | D8: 2019 | E8: ESAF | F8: Baixa

Sheet ConcursosRealizados
I4: =COUNTIF(F8:F10,"Aprovado") -> 2 | J4: =I4&"/"&I5 -> 2/0
I5: =COUNTIF(F8:F10,"Reprovado") -> 0
B7: Concurso | C7: Data da prova | D7: Banca | E7: Anotações | F7: Status
B8: TJSP - ESCREVENTE | C8: 2018-03-20 | D8: VUNESP | E8: AGUARDANDO NOMEAÇÃO | F8: Aprovado | G8: =IF(F8="Aprovado","2",IF(F8="Reprovado","1","0")) -> 2
B9: MPU | D9: CESPE | E9: FORA DAS VAGAS | F9: Aprovado | G9: =IF(F9="Aprovado","2",IF(F9="Reprovado","1","0")) -> 2
G10: =IF(F10="Aprovado","2",IF(F10="Reprovado","1","0")) -> 0
B11: =IF(#REF!="Aprovado","2",IF(#REF!="Reprovado","1","0")) -> 
B12: =IF(#REF!="Aprovado","2",IF(#REF!="Reprovado","1","0")) -> 
B13: =IF(#REF!="Aprovado","2",IF(#REF!="Reprovado","1","0")) -> 
B14: =IF(#REF!="Aprovado","2",IF(#REF!="Reprovado","1","0")) -> 
B15: =IF(#REF!="Aprovado","2",IF(#REF!="Reprovado","1","0")) -> 
B16: =IF(#REF!="Aprovado","2",IF(#REF!="Reprovado","1","0")) -> 
B17: =IF(#REF!="Aprovado","2",IF(#REF!="Reprovado","1","0")) -> 
B18: =IF(#REF!="Aprovado","2",IF(#REF!="Reprovado","1","0")) -> 
B19: =IF(#REF!="Aprovado","2",IF(#REF!="Reprovado","1","0")) -> 
B20: =IF(#REF!="Aprovado","2",IF(#REF!="Reprovado","1","0")) -> 
B21: =IF(#REF!="Aprovado","2",IF(#REF!="Reprovado","1","0")) -> 
B22: =IF(#REF!="Aprovado","2",IF(#REF!="Reprovado","1","0")) -> 
B23: =IF(#REF!="Aprovado","2",IF(#REF!="Reprovado","1","0")) -> 
B24: =IF(#REF!="Aprovado","2",IF(#REF!="Reprovado","1","0")) -> 
B25: =IF(#REF!="Aprovado","2",IF(#REF!="Reprovado","1","0")) -> 
B26: =IF(#REF!="Aprovado","2",IF(#REF!="Reprovado","1","0")) -> 
B27: =IF(#REF!="Aprovado","2",IF(#REF!="Reprovado","1","0")) -> 
B28: =IF(#REF!="Aprovado","2",IF(#REF!="Reprovado","1","0")) -> 
B29: =IF(#REF!="Aprovado","2",IF(#REF!="Reprovado","1","0")) -> 
B30: =IF(#REF!="Aprovado","2",IF(#REF!="Reprovado","1","0")) -> 
B31: =IF(#REF!="Aprovado","2",IF(#REF!="Reprovado","1","0")) -> 
B32: =IF(#REF!="Aprovado","2",IF(#REF!="Reprovado","1","0")) -> 
B33: =IF(#REF!="Aprovado","2",IF(#REF!="Reprovado","1","0")) -> 
B34: =IF(#REF!="Aprovado","2",IF(#REF!="Reprovado","1","0")) -> 
B35: =IF(#REF!="Aprovado","2",IF(#REF!="Reprovado","1","0")) -> 
B36: =IF(#REF!="Aprovado","2",IF(#REF!="Reprovado","1","0")) -> 
B37: =IF(#REF!="Aprovado","2",IF(#REF!="Reprovado","1","0")) -> 
B38: =IF(#REF!="Aprovado","2",IF(#REF!="Reprovado","1","0")) -> 
B39: =IF(#REF!="Aprovado","2",IF(#REF!="Reprovado","1","0")) -> 
B40: =IF(#REF!="Aprovado","2",IF(#REF!="Reprovado","1","0")) -> 
B41: =IF(#REF!="Aprovado","2",IF(#REF!="Reprovado","1","0")) -> 
B42: =IF(#REF!="Aprovado","2",IF(#REF!="Reprovado","1","0")) -> 
B43: =IF(#REF!="Aprovado","2",IF(#REF!="Reprovado","1","0")) -> 
B44: =IF(#REF!="Aprovado","2",IF(#REF!="Reprovado","1","0")) -> 
B45: =IF(#REF!="Aprovado","2",IF(#REF!="Reprovado","1","0")) -> 
B46: =IF(#REF!="Aprovado","2",IF(#REF!="Reprovado","1","0")) -> 
B47: =IF(#REF!="Aprovado","2",IF(#REF!="Reprovado","1","0")) -> 
B48: =IF(#REF!="Aprovado","2",IF(#REF!="Reprovado","1","0")) -> 
B49: =IF(#REF!="Aprovado","2",IF(#REF!="Reprovado","1","0")) -> 
B50: =IF(#REF!="Aprovado","2",IF(#REF!="Reprovado","1","0")) -> 
B51: =IF(#REF!="Aprovado","2",IF(#REF!="Reprovado","1","0")) -> 
B52: =IF(#REF!="Aprovado","2",IF(#REF!="Reprovado","1","0")) -> 
B53: =IF(#REF!="Aprovado","2",IF(#REF!="Reprovado","1","0")) -> 
B54: =IF(#REF!="Aprovado","2",IF(#REF!="Reprovado","1","0")) -> 
B55: =IF(#REF!="Aprovado","2",IF(#REF!="Reprovado","1","0")) -> 
B56: =IF(#REF!="Aprovado","2",IF(#REF!="Reprovado","1","0")) -> 
B57: =IF(#REF!="Aprovado","2",IF(#REF!="Reprovado","1","0")) -> 

Sheet Financeiro
J5: =SUBTOTAL(9,Tabela1[Subtotal]) -> R$ 4,580.00
B7: Data | C7: Descrição | D7: Receitas | E7: Despesas | F7: Subtotal
B8: 2018-12-15 | C8: COMPRA ESTRATÉGIA CONCURSOS | E8: R$ 1,200.00 | F8: =Tabela1[[#This Row],[Receitas]]-Tabela1[[#This Row],[Despesas]] -> -R$ 1,200.00
B9: 2018-12-16 | C9: SALÁRIO | D9: R$ 3,500.00 | F9: =Tabela1[[#This Row],[Receitas]]-Tabela1[[#This Row],[Despesas]] -> R$ 3,500.00
B10: 2018-12-17 | C10: VENDA IPHONE | D10: R$ 2,280.00 | F10: =Tabela1[[#This Row],[Receitas]]-Tabela1[[#This Row],[Despesas]] -> R$ 2,280.00

Sheet Rel_Exer
B22: Selecione a matéria | C22: LÍNGUA PORTUGUESA

Sheet Rel_Sim

Sheet Rel_Horas
B23: Selecione o mês | C23: Outubro
H25: Matérias | I25: Horas | R25: =IF(C23="Janeiro",1,IF(C23="Fevereiro",2,IF(C23="Março",3,IF(C23="Abril",4,IF(C23="Maio",5,IF(C23="Junho",6,IF(C23="Julho",7,IF(C23="Agosto",8,IF(C23="Setembro",9,IF(C23="Outubro",10,IF(C23="Novembro",11,IF(C23="Dezembro",12)))))))))))) -> 10 | S25: =R25+1 -> 11
H26: =Dados!B6 -> LÍNGUA PORTUGUESA | I26: =IFERROR(VLOOKUP(H26,Dados!$B$5:$N$25,$S$25,FALSE),"") -> 0
H27: =Dados!B7 -> RACIOCÍNIO LÓGICO MATEMÁTICO | I27: =IFERROR(VLOOKUP(H27,Dados!$B$5:$N$25,$S$25,FALSE),"") -> 0 | P27: =Edital!E15 -> PORT | S27: =SUMIF(Tabela5[],H26,Tabela5[Questões]) -> 7
H28: =Dados!B8 -> INFORMÁTICA | I28: =IFERROR(VLOOKUP(H28,Dados!$B$5:$N$25,$S$25,FALSE),"") -> 0 | P28: =Edital!E16 -> RLM | S28: =SUMIF(Tabela5[],H27,Tabela5[Questões]) -> 18
H29: =Dados!B9 -> 0 | I29: =IFERROR(VLOOKUP(H29,Dados!$B$5:$N$25,$S$25,FALSE),"") -> 0 | P29: =Edital!E17 -> INFO | S29: =SUMIF(Tabela5[],H28,Tabela5[Questões]) -> 29
H30: =Dados!B10 -> 0 | I30: =IFERROR(VLOOKUP(H30,Dados!$B$5:$N$25,$S$25,FALSE),"") -> 0 | P30: =Edital!E18 -> 0 | S30: =SUMIF(Tabela5[],H29,Tabela5[Questões]) -> 0
H31: =Dados!B11 -> 0 | I31: =IFERROR(VLOOKUP(H31,Dados!$B$5:$N$25,$S$25,FALSE),"") -> 0 | P31: =Edital!E19 -> 0 | S31: =SUMIF(Tabela5[],H30,Tabela5[Questões]) -> 0
H32: =Dados!B12 -> 0 | I32: =IFERROR(VLOOKUP(H32,Dados!$B$5:$N$25,$S$25,FALSE),"") -> 0 | P32: =Edital!E20 -> 0 | S32: =SUMIF(Tabela5[],H31,Tabela5[Questões]) -> 0
H33: =Dados!B13 -> 0 | I33: =IFERROR(VLOOKUP(H33,Dados!$B$5:$N$25,$S$25,FALSE),"") -> 0 | P33: =Edital!E21 -> 0 | S33: =SUMIF(Tabela5[],H32,Tabela5[Questões]) -> 0
H34: =Dados!B14 -> 0 | I34: =IFERROR(VLOOKUP(H34,Dados!$B$5:$N$25,$S$25,FALSE),"") -> 0 | P34: =Edital!E22 -> 0 | S34: =SUMIF(Tabela5[],H33,Tabela5[Questões]) -> 0
H35: =Dados!B15 -> 0 | I35: =IFERROR(VLOOKUP(H35,Dados!$B$5:$N$25,$S$25,FALSE),"") -> 0 | P35: =Edital!E23 -> 0 | S35: =SUMIF(Tabela5[],H34,Tabela5[Questões]) -> 0
H36: =Dados!B16 -> 0 | I36: =IFERROR(VLOOKUP(H36,Dados!$B$5:$N$25,$S$25,FALSE),"") -> 0 | P36: =Edital!E24 -> 0 | S36: =SUMIF(Tabela5[],H35,Tabela5[Questões]) -> 0
H37: =Dados!B17 -> 0 | I37: =IFERROR(VLOOKUP(H37,Dados!$B$5:$N$25,$S$25,FALSE),"") -> 0 | P37: =Edital!E25 -> 0 | S37: =SUMIF(Tabela5[],H36,Tabela5[Questões]) -> 0
H38: =Dados!B18 -> 0 | I38: =IFERROR(VLOOKUP(H38,Dados!$B$5:$N$25,$S$25,FALSE),"") -> 0 | P38: =Edital!E26 -> 0 | S38: =SUMIF(Tabela5[],H37,Tabela5[Questões]) -> 0
H39: =Dados!B19 -> 0 | I39: =IFERROR(VLOOKUP(H39,Dados!$B$5:$N$25,$S$25,FALSE),"") -> 0 | P39: =Edital!E27 -> 0 | S39: =SUMIF(Tabela5[],H38,Tabela5[Questões]) -> 0
H40: =Dados!B20 -> 0 | I40: =IFERROR(VLOOKUP(H40,Dados!$B$5:$N$25,$S$25,FALSE),"") -> 0 | P40: =Edital!E28 -> 0 | S40: =SUMIF(Tabela5[],H39,Tabela5[Questões]) -> 0
H41: =Dados!B21 -> 0 | I41: =IFERROR(VLOOKUP(H41,Dados!$B$5:$N$25,$S$25,FALSE),"") -> 0 | P41: =Edital!E29 -> 0 | S41: =SUMIF(Tabela5[],H40,Tabela5[Questões]) -> 0
H42: =Dados!B22 -> 0 | I42: =IFERROR(VLOOKUP(H42,Dados!$B$5:$N$25,$S$25,FALSE),"") -> 0 | P42: =Edital!E30 -> 0 | S42: =SUMIF(Tabela5[],H41,Tabela5[Questões]) -> 0
H43: =Dados!B23 -> 0 | I43: =IFERROR(VLOOKUP(H43,Dados!$B$5:$N$25,$S$25,FALSE),"") -> 0 | P43: =Edital!E31 -> 0 | S43: =SUMIF(Tabela5[],H42,Tabela5[Questões]) -> 0
H44: =Dados!B24 -> 0 | I44: =IFERROR(VLOOKUP(H44,Dados!$B$5:$N$25,$S$25,FALSE),"") -> 0 | P44: =Edital!E32 -> 0 | S44: =SUMIF(Tabela5[],H43,Tabela5[Questões]) -> 0
H45: =Dados!B25 -> 0 | I45: =IFERROR(VLOOKUP(H45,Dados!$B$5:$N$25,$S$25,FALSE),"") -> 0 | P45: =Edital!E33 -> 0 | S45: =SUMIF(Tabela5[],H44,Tabela5[Questões]) -> 0
P46: =Edital!E34 -> 0 | S46: =SUMIF(Tabela5[],H45,Tabela5[Questões]) -> 0

Sheet Rel_Fin
C7: 1 | D7: 2 | E7: 3 | F7: 4 | G7: 5 | H7: 6 | I7: 7 | J7: 8 | K7: 9 | L7: 10 | M7: 11 | N7: 12
B8: Fluxo de caixa | C8: Janeiro | D8: Fevereiro | E8: Março | F8: Abril | G8: Maio | H8: Junho | I8: Julho | J8: Agosto | K8: Setembro | L8: Outubro | M8: Novembro | N8: Dezembro
B9: Receitas | C9: =SUMPRODUCT((MONTH(Tabela1[Data])=C7)*(Tabela1[Receitas])) -> R$ 0.00 | D9: =SUMPRODUCT((MONTH(Tabela1[Data])=D7)*(Tabela1[Receitas])) -> R$ 0.00 | E9: =SUMPRODUCT((MONTH(Tabela1[Data])=E7)*(Tabela1[Receitas])) -> R$ 0.00 | F9: =SUMPRODUCT((MONTH(Tabela1[Data])=F7)*(Tabela1[Receitas])) -> R$ 0.00 | G9: =SUMPRODUCT((MONTH(Tabela1[Data])=G7)*(Tabela1[Receitas])) -> R$ 0.00 | H9: =SUMPRODUCT((MONTH(Tabela1[Data])=H7)*(Tabela1[Receitas])) -> R$ 0.00 | I9: =SUMPRODUCT((MONTH(Tabela1[Data])=I7)*(Tabela1[Receitas])) -> R$ 0.00 | J9: =SUMPRODUCT((MONTH(Tabela1[Data])=J7)*(Tabela1[Receitas])) -> R$ 0.00 | K9: =SUMPRODUCT((MONTH(Tabela1[Data])=K7)*(Tabela1[Receitas])) -> R$ 0.00 | L9: =SUMPRODUCT((MONTH(Tabela1[Data])=L7)*(Tabela1[Receitas])) -> R$ 0.00 | M9: =SUMPRODUCT((MONTH(Tabela1[Data])=M7)*(Tabela1[Receitas])) -> R$ 0.00 | N9: =SUMPRODUCT((MONTH(Tabela1[Data])=N7)*(Tabela1[Receitas])) -> R$ 5,780.00 | O9: Receitas | P9: =SUM(C9:N9) -> R$ 5,780.00
B10: Despesas | C10: =IFERROR(SUMPRODUCT((MONTH(Tabela1[Data])=C7)*(Tabela1[Despesas])),"") -> R$ 0.00 | D10: =IFERROR(SUMPRODUCT((MONTH(Tabela1[Data])=D7)*(Tabela1[Despesas])),"") -> R$ 0.00 | E10: =IFERROR(SUMPRODUCT((MONTH(Tabela1[Data])=E7)*(Tabela1[Despesas])),"") -> R$ 0.00 | F10: =IFERROR(SUMPRODUCT((MONTH(Tabela1[Data])=F7)*(Tabela1[Despesas])),"") -> R$ 0.00 | G10: =IFERROR(SUMPRODUCT((MONTH(Tabela1[Data])=G7)*(Tabela1[Despesas])),"") -> R$ 0.00 | H10: =IFERROR(SUMPRODUCT((MONTH(Tabela1[Data])=H7)*(Tabela1[Despesas])),"") -> R$ 0.00 | I10: =IFERROR(SUMPRODUCT((MONTH(Tabela1[Data])=I7)*(Tabela1[Despesas])),"") -> R$ 0.00 | J10: =IFERROR(SUMPRODUCT((MONTH(Tabela1[Data])=J7)*(Tabela1[Despesas])),"") -> R$ 0.00 | K10: =IFERROR(SUMPRODUCT((MONTH(Tabela1[Data])=K7)*(Tabela1[Despesas])),"") -> R$ 0.00 | L10: =IFERROR(SUMPRODUCT((MONTH(Tabela1[Data])=L7)*(Tabela1[Despesas])),"") -> R$ 0.00 | M10: =IFERROR(SUMPRODUCT((MONTH(Tabela1[Data])=M7)*(Tabela1[Despesas])),"") -> R$ 0.00 | N10: =IFERROR(SUMPRODUCT((MONTH(Tabela1[Data])=N7)*(Tabela1[Despesas])),"") -> R$ 1,200.00 | O10: Despesas | P10: =SUM(C10:N10) -> R$ 1,200.00
B11: Lucro/Prejuízo | C11: =C9-C10 -> R$ 0.00 | D11: =D9-D10 -> R$ 0.00 | E11: R$ 0.00 | F11: R$ 0.00 | G11: R$ 0.00 | H11: R$ 0.00 | I11: R$ 0.00 | J11: R$ 0.00 | K11: R$ 0.00 | L11: R$ 0.00 | M11: R$ 0.00 | N11: R$ 4,580.00

Sheet Configurações
B5: Horários disponíveis para estudar
B6: Digite o tempo que você tem disponível para estudar em cada dia da semana.
B9: Segunda | D9: Terça | F9: Quarta | H9: Quinta | J9: Sexta | L9: Sábado | N9: Domingo
B10: 10:00:00 | D10: 10:00:00 | F10: 10:00:00 | H10: 10:00:00 | J10: 10:00:00 | L10: 10:00:00 | N10: 10:00:00
B11: Horas | D11: Horas | F11: Horas | H11: Horas | J11: Horas | L11: Horas | N11: Horas
B13: Metas mensais
B14: Defina as metas de horas estudadas por mês que você pretende alcançar.
B16: Janeiro | C16: 4.166666667 | F16: Maio | G16: 5 | J16: Setembro | K16: 5.833333333
B17: Fevereiro | C17: 4.166666667 | F17: Junho | G17: 5 | J17: Outubro | K17: 5.833333333
B18: Março | C18: 4.166666667 | F18: Julho | G18: 5 | J18: Novembro | K18: 5.833333333
B19: Abril | C19: 4.166666667 | F19: Agosto | G19: 5 | J19: Dezembro | K19: 5.833333333
B22: Lista de atividades
B25: Atividade 1 | C25: Leitura
B26: Atividade 2 | C26: Exercícios
B27: Atividade 3 | C27: Videoaulas
B28: Atividade 4 | C28: Revisão
B29: Atividade 5 | C29: Atividade 5
B30: Atividade 6 | C30: Atividade 6
B31: Atividade 7 | C31: Atividade 7
B32: Atividade 8 | C32: Atividade 8
B33: Atividade 9 | C33: Atividade 9
B34: Atividade 10 | C34: Atividade 10

Sheet Dados
B1: NÃO ALTERE !!! DADOS IMPORTANTES
B3: Horas: Matérias x Meses | Q3: Cálculo horas disponíveis p/ estudo | W3: Meta estudo x Realizado | AF3: Questões | AZ3: Matéria
AO4: Total resolvidas | AT4: MAIOR | AW4: MENOR | AZ4: Mês | BB4: Questões | BC4: Acertos | BD4: Erros | BE4: %Acerto | BF4: %Erro
B5: Matéria x Mês | C5: 1 | D5: 2 | E5: 3 | F5: 4 | G5: 5 | H5: 6 | I5: 7 | J5: 8 | K5: 9 | L5: 10 | M5: 11 | N5: 12 | O5: Total Horas x Ano | Q5: Data inicial dos estudos | R5: =Edital!I7 -> 2018-12-06 | X5: Meta | Y5: Realizado | AF5: Mês | AG5: Mês | AH5: Questões resolvidas | AI5: Acertos | AJ5: Erros | AK5: %Des | AL5: %Ace | AM5: %Erro | AO5: =SUMIF(Tabela5[],AP5,Tabela5[Questões]) -> 7 | AP5: =Edital!C15 -> LÍNGUA PORTUGUESA | AR5: 1 | AS5: =LARGE($AO$5:$AO$24,1) -> 29 | AT5: =VLOOKUP(AS5,$AO$5:$AP$24,2,FALSE) -> INFORMÁTICA | AV5: 1 | AW5: =SMALL($AO$5:$AO$24,1) -> 0 | AX5: =VLOOKUP(AW5,$AO$5:$AP$24,2,) -> 0 | AZ5: Jan | BA5: 1 | BB5: =IFERROR(SUMPRODUCT((MONTH(Tabela5[Data])=BA5)*(Tabela5[Matéria]=Rel_Exer!$C$22)*(Tabela5[Questões])),"") -> 0 | BC5: =IFERROR(SUMPRODUCT((MONTH(Tabela5[Data])=BA5)*(Tabela5[Matéria]=Rel_Exer!$C$22)*(Tabela5[Acertos])),"") -> 0 | BD5: =BB5-BC5 -> 0 | BE5: =IFERROR(BC5/BB5,"") ->  | BF5: =IFERROR(BD5/BB5,"") -> 
B6: =Edital!C15 -> LÍNGUA PORTUGUESA | C6: =IFERROR(SUMPRODUCT((MONTH(Tabela2[Data])=$C$5)*(Tabela2[Matéria]=B6)*Tabela2[Horas]),"") -> 0 | D6: =IFERROR(SUMPRODUCT((MONTH(Tabela2[Data])=$D$5)*(Tabela2[Matéria]=B6)*Tabela2[Horas]),"") -> 0 | E6: =IFERROR(SUMPRODUCT((MONTH(Tabela2[Data])=$E$5)*(Tabela2[Matéria]=B6)*Tabela2[Horas]),"") -> 0 | F6: =IFERROR(SUMPRODUCT((MONTH(Tabela2[Data])=$F$5)*(Tabela2[Matéria]=B6)*Tabela2[Horas]),"") -> 0 | G6: =IFERROR(SUMPRODUCT((MONTH(Tabela2[Data])=$G$5)*(Tabela2[Matéria]=B6)*Tabela2[Horas]),"") -> 0 | H6: =IFERROR(SUMPRODUCT((MONTH(Tabela2[Data])=$H$5)*(Tabela2[Matéria]=B6)*Tabela2[Horas]),"") -> 0 | I6: =IFERROR(SUMPRODUCT((MONTH(Tabela2[Data])=$I$5)*(Tabela2[Matéria]=B6)*Tabela2[Horas]),"") -> 0 | J6: =IFERROR(SUMPRODUCT((MONTH(Tabela2[Data])=$J$5)*(Tabela2[Matéria]=B6)*Tabela2[Horas]),"") -> 0 | K6: =IFERROR(SUMPRODUCT((MONTH(Tabela2[Data])=$K$5)*(Tabela2[Matéria]=B6)*Tabela2[Horas]),"") -> 0 | L6: =IFERROR(SUMPRODUCT((MONTH(Tabela2[Data])=$L$5)*(Tabela2[Matéria]=B6)*Tabela2[Horas]),"") -> 0 | M6: =IFERROR(SUMPRODUCT((MONTH(Tabela2[Data])=$M$5)*(Tabela2[Matéria]=B6)*Tabela2[Horas]),"") -> 0 | N6: =IFERROR(SUMPRODUCT((MONTH(Tabela2[Data])=$N$5)*(Tabela2[Matéria]=B6)*Tabela2[Horas]),"") -> 0 | Q6: Data do concurso | R6: =Edital!I9 -> 2019-02-03 | V6: Jan | W6: 1 | X6: =Configurações!C16 -> 4.166666667 | Y6: =C26 -> 0 | AF6: Jan | AG6: 1 | AH6: =SUMPRODUCT((MONTH(Tabela5[Data])=AG6)*(Tabela5[Questões])) -> 0 | AI6: =SUMPRODUCT((MONTH(Tabela5[Data])=AG6)*(Tabela5[Acertos])) -> 0 | AJ6: =AH6-AI6 -> 0 | AK6: =IFERROR(AI6/AH6,"") ->  | AL6: =IFERROR(AI6/AH6,"") ->  | AM6: =IFERROR(AJ6/AH6,"") ->  | AO6: =SUMIF(Tabela5[],AP6,Tabela5[Questões]) -> 18 | AP6: =Edital!C16 -> RACIOCÍNIO LÓGICO MATEMÁTICO | AR6: 2 | AS6: =LARGE($AO$5:$AO$24,2) -> 18 | AT6: =VLOOKUP(AS6,$AO$5:$AP$24,2,FALSE) -> RACIOCÍNIO LÓGICO MATEMÁTICO | AV6: 2 | AW6: =SMALL($AO$5:$AO$24,2) -> 0 | AX6: =VLOOKUP(AW6,$AO$5:$AP$24,2,) -> 0 | AZ6: Fev | BA6: 2 | BB6: =IFERROR(SUMPRODUCT((MONTH(Tabela5[Data])=BA6)*(Tabela5[Matéria]=Rel_Exer!$C$22)*(Tabela5[Questões])),"") -> 0 | BC6: =IFERROR(SUMPRODUCT((MONTH(Tabela5[Data])=BA6)*(Tabela5[Matéria]=Rel_Exer!$C$22)*(Tabela5[Acertos])),"") -> 0 | BD6: =BB6-BC6 -> 0 | BE6: =IFERROR(BC6/BB6,"") ->  | BF6: =IFERROR(BD6/BB6,"") -> 
B7: =Edital!C16 -> RACIOCÍNIO LÓGICO MATEMÁTICO | C7: =IFERROR(SUMPRODUCT((MONTH(Tabela2[Data])=$C$5)*(Tabela2[Matéria]=B7)*Tabela2[Horas]),"") -> 0 | D7: =IFERROR(SUMPRODUCT((MONTH(Tabela2[Data])=$D$5)*(Tabela2[Matéria]=B7)*Tabela2[Horas]),"") -> 0 | E7: =IFERROR(SUMPRODUCT((MONTH(Tabela2[Data])=$E$5)*(Tabela2[Matéria]=B7)*Tabela2[Horas]),"") -> 0 | F7: =IFERROR(SUMPRODUCT((MONTH(Tabela2[Data])=$F$5)*(Tabela2[Matéria]=B7)*Tabela2[Horas]),"") -> 0 | G7: =IFERROR(SUMPRODUCT((MONTH(Tabela2[Data])=$G$5)*(Tabela2[Matéria]=B7)*Tabela2[Horas]),"") -> 0 | H7: =IFERROR(SUMPRODUCT((MONTH(Tabela2[Data])=$H$5)*(Tabela2[Matéria]=B7)*Tabela2[Horas]),"") -> 0 | I7: =IFERROR(SUMPRODUCT((MONTH(Tabela2[Data])=$I$5)*(Tabela2[Matéria]=B7)*Tabela2[Horas]),"") -> 0 | J7: =IFERROR(SUMPRODUCT((MONTH(Tabela2[Data])=$J$5)*(Tabela2[Matéria]=B7)*Tabela2[Horas]),"") -> 0 | K7: =IFERROR(SUMPRODUCT((MONTH(Tabela2[Data])=$K$5)*(Tabela2[Matéria]=B7)*Tabela2[Horas]),"") -> 0 | L7: =IFERROR(SUMPRODUCT((MONTH(Tabela2[Data])=$L$5)*(Tabela2[Matéria]=B7)*Tabela2[Horas]),"") -> 0 | M7: =IFERROR(SUMPRODUCT((MONTH(Tabela2[Data])=$M$5)*(Tabela2[Matéria]=B7)*Tabela2[Horas]),"") -> 0 | N7: =IFERROR(SUMPRODUCT((MONTH(Tabela2[Data])=$N$5)*(Tabela2[Matéria]=B7)*Tabela2[Horas]),"") -> 0 | V7: Fev | W7: 2 | X7: =Configurações!C17 -> 4.166666667 | Y7: =D26 -> 0 | AF7: Fev | AG7: 2 | AH7: =SUMPRODUCT((MONTH(Tabela5[Data])=AG7)*(Tabela5[Questões])) -> 0 | AI7: =SUMPRODUCT((MONTH(Tabela5[Data])=AG7)*(Tabela5[Acertos])) -> 0 | AJ7: =AH7-AI7 -> 0 | AK7: =IFERROR(AI7/AH7,"") ->  | AL7: =IFERROR(AI7/AH7,"") ->  | AM7: =IFERROR(AJ7/AH7,"") ->  | AO7: =SUMIF(Tabela5[],AP7,Tabela5[Questões]) -> 29 | AP7: =Edital!C17 -> INFORMÁTICA | AR7: 3 | AS7: =LARGE($AO$5:$AO$24,3) -> 7 | AT7: =VLOOKUP(AS7,$AO$5:$AP$24,2,FALSE) -> LÍNGUA PORTUGUESA | AV7: 3 | AW7: =SMALL($AO$5:$AO$24,3) -> 0 | AX7: =VLOOKUP(AW7,$AO$5:$AP$24,2,) -> 0 | AZ7: Mar | BA7: 3 | BB7: =IFERROR(SUMPRODUCT((MONTH(Tabela5[Data])=BA7)*(Tabela5[Matéria]=Rel_Exer!$C$22)*(Tabela5[Questões])),"") -> 0 | BC7: =IFERROR(SUMPRODUCT((MONTH(Tabela5[Data])=BA7)*(Tabela5[Matéria]=Rel_Exer!$C$22)*(Tabela5[Acertos])),"") -> 0 | BD7: 0
B8: =Edital!C17 -> INFORMÁTICA | C8: =IFERROR(SUMPRODUCT((MONTH(Tabela2[Data])=$C$5)*(Tabela2[Matéria]=B8)*Tabela2[Horas]),"") -> 0 | D8: =IFERROR(SUMPRODUCT((MONTH(Tabela2[Data])=$D$5)*(Tabela2[Matéria]=B8)*Tabela2[Horas]),"") -> 0 | E8: =IFERROR(SUMPRODUCT((MONTH(Tabela2[Data])=$E$5)*(Tabela2[Matéria]=B8)*Tabela2[Horas]),"") -> 0 | F8: =IFERROR(SUMPRODUCT((MONTH(Tabela2[Data])=$F$5)*(Tabela2[Matéria]=B8)*Tabela2[Horas]),"") -> 0 | G8: =IFERROR(SUMPRODUCT((MONTH(Tabela2[Data])=$G$5)*(Tabela2[Matéria]=B8)*Tabela2[Horas]),"") -> 0 | H8: =IFERROR(SUMPRODUCT((MONTH(Tabela2[Data])=$H$5)*(Tabela2[Matéria]=B8)*Tabela2[Horas]),"") -> 0 | I8: =IFERROR(SUMPRODUCT((MONTH(Tabela2[Data])=$I$5)*(Tabela2[Matéria]=B8)*Tabela2[Horas]),"") -> 0 | J8: =IFERROR(SUMPRODUCT((MONTH(Tabela2[Data])=$J$5)*(Tabela2[Matéria]=B8)*Tabela2[Horas]),"") -> 0 | K8: =IFERROR(SUMPRODUCT((MONTH(Tabela2[Data])=$K$5)*(Tabela2[Matéria]=B8)*Tabela2[Horas]),"") -> 0 | L8: =IFERROR(SUMPRODUCT((MONTH(Tabela2[Data])=$L$5)*(Tabela2[Matéria]=B8)*Tabela2[Horas]),"") -> 0 | M8: =IFERROR(SUMPRODUCT((MONTH(Tabela2[Data])=$M$5)*(Tabela2[Matéria]=B8)*Tabela2[Horas]),"") -> 0 | N8: =IFERROR(SUMPRODUCT((MONTH(Tabela2[Data])=$N$5)*(Tabela2[Matéria]=B8)*Tabela2[Horas]),"") -> 0 | Q8: Segundas | R8: =INT((WEEKDAY($R$5-2)-$R$5+$R6)/7) -> 8 | S8: =Configurações!B10 -> 10:00:00 | T8: =IFERROR(R8*S8,"") -> 3.333333333 | V8: Mar | W8: 3 | X8: =Configurações!C18 -> 4.166666667 | Y8: =E26 -> 0 | AF8: Mar | AG8: 3 | AH8: =SUMPRODUCT((MONTH(Tabela5[Data])=AG8)*(Tabela5[Questões])) -> 0 | AI8: =SUMPRODUCT((MONTH(Tabela5[Data])=AG8)*(Tabela5[Acertos])) -> 0 | AJ8: 0 | AO8: =SUMIF(Tabela5[],AP8,Tabela5[Questões]) -> 0 | AP8: =Edital!C18 -> 0 | AR8: 4 | AS8: =LARGE($AO$5:$AO$24,4) -> 0 | AT8: =VLOOKUP(AS8,$AO$5:$AP$24,2,FALSE) -> 0 | AV8: 4 | AW8: =SMALL($AO$5:$AO$24,4) -> 0 | AX8: =VLOOKUP(AW8,$AO$5:$AP$24,2,) -> 0 | AZ8: Abr | BA8: 4 | BB8: =IFERROR(SUMPRODUCT((MONTH(Tabela5[Data])=BA8)*(Tabela5[Matéria]=Rel_Exer!$C$22)*(Tabela5[Questões])),"") -> 0 | BC8: =IFERROR(SUMPRODUCT((MONTH(Tabela5[Data])=BA8)*(Tabela5[Matéria]=Rel_Exer!$C$22)*(Tabela5[Acertos])),"") -> 0 | BD8: 0
B9: =Edital!C18 -> 0 | C9: =IFERROR(SUMPRODUCT((MONTH(Tabela2[Data])=$C$5)*(Tabela2[Matéria]=B9)*Tabela2[Horas]),"") -> 0 | D9: =IFERROR(SUMPRODUCT((MONTH(Tabela2[Data])=$D$5)*(Tabela2[Matéria]=B9)*Tabela2[Horas]),"") -> 0 | E9: =IFERROR(SUMPRODUCT((MONTH(Tabela2[Data])=$E$5)*(Tabela2[Matéria]=B9)*Tabela2[Horas]),"") -> 0 | F9: =IFERROR(SUMPRODUCT((MONTH(Tabela2[Data])=$F$5)*(Tabela2[Matéria]=B9)*Tabela2[Horas]),"") -> 0 | G9: =IFERROR(SUMPRODUCT((MONTH(Tabela2[Data])=$G$5)*(Tabela2[Matéria]=B9)*Tabela2[Horas]),"") -> 0 | H9: =IFERROR(SUMPRODUCT((MONTH(Tabela2[Data])=$H$5)*(Tabela2[Matéria]=B9)*Tabela2[Horas]),"") -> 0 | I9: =IFERROR(SUMPRODUCT((MONTH(Tabela2[Data])=$I$5)*(Tabela2[Matéria]=B9)*Tabela2[Horas]),"") -> 0 | J9: =IFERROR(SUMPRODUCT((MONTH(Tabela2[Data])=$J$5)*(Tabela2[Matéria]=B9)*Tabela2[Horas]),"") -> 0 | K9: =IFERROR(SUMPRODUCT((MONTH(Tabela2[Data])=$K$5)*(Tabela2[Matéria]=B9)*Tabela2[Horas]),"") -> 0 | L9: =IFERROR(SUMPRODUCT((MONTH(Tabela2[Data])=$L$5)*(Tabela2[Matéria]=B9)*Tabela2[Horas]),"") -> 0 | M9: =IFERROR(SUMPRODUCT((MONTH(Tabela2[Data])=$M$5)*(Tabela2[Matéria]=B9)*Tabela2[Horas]),"") -> 0 | N9: =IFERROR(SUMPRODUCT((MONTH(Tabela2[Data])=$N$5)*(Tabela2[Matéria]=B9)*Tabela2[Horas]),"") -> 0 | Q9: Terças | R9: =INT((WEEKDAY($R$5-3)-$R$5+$R6)/7) -> 8 | S9: =Configurações!D10 -> 10:00:00 | T9: =IFERROR(R9*S9,"") -> 3.333333333 | V9: Abr | W9: 4 | X9: =Configurações!C19 -> 4.166666667 | Y9: =F26 -> 0 | AF9: Abr | AG9: 4 | AH9: =SUMPRODUCT((MONTH(Tabela5[Data])=AG9)*(Tabela5[Questões])) -> 0 | AI9: =SUMPRODUCT((MONTH(Tabela5[Data])=AG9)*(Tabela5[Acertos])) -> 0 | AJ9: 0 | AO9: =SUMIF(Tabela5[],AP9,Tabela5[Questões]) -> 0 | AP9: =Edital!C19 -> 0 | AR9: 5 | AS9: =LARGE($AO$5:$AO$24,5) -> 0 | AT9: =VLOOKUP(AS9,$AO$5:$AP$24,2,FALSE) -> 0 | AV9: 5 | AW9: =SMALL($AO$5:$AO$24,5) -> 0 | AX9: =VLOOKUP(AW9,$AO$5:$AP$24,2,) -> 0 | AZ9: Mai | BA9: 5 | BB9: =IFERROR(SUMPRODUCT((MONTH(Tabela5[Data])=BA9)*(Tabela5[Matéria]=Rel_Exer!$C$22)*(Tabela5[Questões])),"") -> 0 | BC9: =IFERROR(SUMPRODUCT((MONTH(Tabela5[Data])=BA9)*(Tabela5[Matéria]=Rel_Exer!$C$22)*(Tabela5[Acertos])),"") -> 0 | BD9: 0
B10: =Edital!C19 -> 0 | C10: =IFERROR(SUMPRODUCT((MONTH(Tabela2[Data])=$C$5)*(Tabela2[Matéria]=B10)*Tabela2[Horas]),"") -> 0 | D10: =IFERROR(SUMPRODUCT((MONTH(Tabela2[Data])=$D$5)*(Tabela2[Matéria]=B10)*Tabela2[Horas]),"") -> 0 | E10: =IFERROR(SUMPRODUCT((MONTH(Tabela2[Data])=$E$5)*(Tabela2[Matéria]=B10)*Tabela2[Horas]),"") -> 0 | F10: =IFERROR(SUMPRODUCT((MONTH(Tabela2[Data])=$F$5)*(Tabela2[Matéria]=B10)*Tabela2[Horas]),"") -> 0 | G10: =IFERROR(SUMPRODUCT((MONTH(Tabela2[Data])=$G$5)*(Tabela2[Matéria]=B10)*Tabela2[Horas]),"") -> 0 | H10: =IFERROR(SUMPRODUCT((MONTH(Tabela2[Data])=$H$5)*(Tabela2[Matéria]=B10)*Tabela2[Horas]),"") -> 0 | I10: =IFERROR(SUMPRODUCT((MONTH(Tabela2[Data])=$I$5)*(Tabela2[Matéria]=B10)*Tabela2[Horas]),"") -> 0 | J10: =IFERROR(SUMPRODUCT((MONTH(Tabela2[Data])=$J$5)*(Tabela2[Matéria]=B10)*Tabela2[Horas]),"") -> 0 | K10: =IFERROR(SUMPRODUCT((MONTH(Tabela2[Data])=$K$5)*(Tabela2[Matéria]=B10)*Tabela2[Horas]),"") -> 0 | L10: =IFERROR(SUMPRODUCT((MONTH(Tabela2[Data])=$L$5)*(Tabela2[Matéria]=B10)*Tabela2[Horas]),"") -> 0 | M10: =IFERROR(SUMPRODUCT((MONTH(Tabela2[Data])=$M$5)*(Tabela2[Matéria]=B10)*Tabela2[Horas]),"") -> 0 | N10: =IFERROR(SUMPRODUCT((MONTH(Tabela2[Data])=$N$5)*(Tabela2[Matéria]=B10)*Tabela2[Horas]),"") -> 0 | Q10: Quartas | R10: =INT((WEEKDAY($R$5-4)-$R$5+$R6)/7) -> 8 | S10: =Configurações!F10 -> 10:00:00 | T10: 3.333333333 | V10: Mai | W10: 5 | X10: =Configurações!G16 -> 5 | Y10: =G26 -> 0 | AF10: Mai | AG10: 5 | AH10: =SUMPRODUCT((MONTH(Tabela5[Data])=AG10)*(Tabela5[Questões])) -> 0 | AI10: =SUMPRODUCT((MONTH(Tabela5[Data])=AG10)*(Tabela5[Acertos])) -> 0 | AJ10: 0 | AO10: =SUMIF(Tabela5[],AP10,Tabela5[Questões]) -> 0 | AP10: =Edital!C20 -> 0 | AZ10: Jun | BA10: 6 | BB10: =IFERROR(SUMPRODUCT((MONTH(Tabela5[Data])=BA10)*(Tabela5[Matéria]=Rel_Exer!$C$22)*(Tabela5[Questões])),"") -> 0 | BC10: =IFERROR(SUMPRODUCT((MONTH(Tabela5[Data])=BA10)*(Tabela5[Matéria]=Rel_Exer!$C$22)*(Tabela5[Acertos])),"") -> 0 | BD10: 0
B11: =Edital!C20 -> 0 | C11: =IFERROR(SUMPRODUCT((MONTH(Tabela2[Data])=$C$5)*(Tabela2[Matéria]=B11)*Tabela2[Horas]),"") -> 0 | D11: =IFERROR(SUMPRODUCT((MONTH(Tabela2[Data])=$D$5)*(Tabela2[Matéria]=B11)*Tabela2[Horas]),"") -> 0 | E11: =IFERROR(SUMPRODUCT((MONTH(Tabela2[Data])=$E$5)*(Tabela2[Matéria]=B11)*Tabela2[Horas]),"") -> 0 | F11: =IFERROR(SUMPRODUCT((MONTH(Tabela2[Data])=$F$5)*(Tabela2[Matéria]=B11)*Tabela2[Horas]),"") -> 0 | G11: =IFERROR(SUMPRODUCT((MONTH(Tabela2[Data])=$G$5)*(Tabela2[Matéria]=B11)*Tabela2[Horas]),"") -> 0 | H11: =IFERROR(SUMPRODUCT((MONTH(Tabela2[Data])=$H$5)*(Tabela2[Matéria]=B11)*Tabela2[Horas]),"") -> 0 | I11: =IFERROR(SUMPRODUCT((MONTH(Tabela2[Data])=$I$5)*(Tabela2[Matéria]=B11)*Tabela2[Horas]),"") -> 0 | J11: =IFERROR(SUMPRODUCT((MONTH(Tabela2[Data])=$J$5)*(Tabela2[Matéria]=B11)*Tabela2[Horas]),"") -> 0 | K11: =IFERROR(SUMPRODUCT((MONTH(Tabela2[Data])=$K$5)*(Tabela2[Matéria]=B11)*Tabela2[Horas]),"") -> 0 | L11: =IFERROR(SUMPRODUCT((MONTH(Tabela2[Data])=$L$5)*(Tabela2[Matéria]=B11)*Tabela2[Horas]),"") -> 0 | M11: =IFERROR(SUMPRODUCT((MONTH(Tabela2[Data])=$M$5)*(Tabela2[Matéria]=B11)*Tabela2[Horas]),"") -> 0 | N11: =IFERROR(SUMPRODUCT((MONTH(Tabela2[Data])=$N$5)*(Tabela2[Matéria]=B11)*Tabela2[Horas]),"") -> 0 | Q11: Quintas | R11: =INT((WEEKDAY($R$5-5)-$R$5+$R6)/7) -> 9 | S11: =Configurações!H10 -> 10:00:00 | T11: 3.75 | V11: Jun | W11: 6 | X11: =Configurações!G17 -> 5 | Y11: =H26 -> 0 | AF11: Jun | AG11: 6 | AH11: =SUMPRODUCT((MONTH(Tabela5[Data])=AG11)*(Tabela5[Questões])) -> 0 | AI11: =SUMPRODUCT((MONTH(Tabela5[Data])=AG11)*(Tabela5[Acertos])) -> 0 | AJ11: 0 | AO11: =SUMIF(Tabela5[],AP11,Tabela5[Questões]) -> 0 | AP11: =Edital!C21 -> 0 | AZ11: Jul | BA11: 7 | BB11: =IFERROR(SUMPRODUCT((MONTH(Tabela5[Data])=BA11)*(Tabela5[Matéria]=Rel_Exer!$C$22)*(Tabela5[Questões])),"") -> 0 | BC11: =IFERROR(SUMPRODUCT((MONTH(Tabela5[Data])=BA11)*(Tabela5[Matéria]=Rel_Exer!$C$22)*(Tabela5[Acertos])),"") -> 0 | BD11: 0
B12: =Edital!C21 -> 0 | C12: =IFERROR(SUMPRODUCT((MONTH(Tabela2[Data])=$C$5)*(Tabela2[Matéria]=B12)*Tabela2[Horas]),"") -> 0 | D12: =IFERROR(SUMPRODUCT((MONTH(Tabela2[Data])=$D$5)*(Tabela2[Matéria]=B12)*Tabela2[Horas]),"") -> 0 | E12: =IFERROR(SUMPRODUCT((MONTH(Tabela2[Data])=$E$5)*(Tabela2[Matéria]=B12)*Tabela2[Horas]),"") -> 0 | F12: =IFERROR(SUMPRODUCT((MONTH(Tabela2[Data])=$F$5)*(Tabela2[Matéria]=B12)*Tabela2[Horas]),"") -> 0 | G12: =IFERROR(SUMPRODUCT((MONTH(Tabela2[Data])=$G$5)*(Tabela2[Matéria]=B12)*Tabela2[Horas]),"") -> 0 | H12: =IFERROR(SUMPRODUCT((MONTH(Tabela2[Data])=$H$5)*(Tabela2[Matéria]=B12)*Tabela2[Horas]),"") -> 0 | I12: =IFERROR(SUMPRODUCT((MONTH(Tabela2[Data])=$I$5)*(Tabela2[Matéria]=B12)*Tabela2[Horas]),"") -> 0 | J12: =IFERROR(SUMPRODUCT((MONTH(Tabela2[Data])=$J$5)*(Tabela2[Matéria]=B12)*Tabela2[Horas]),"") -> 0 | K12: =IFERROR(SUMPRODUCT((MONTH(Tabela2[Data])=$K$5)*(Tabela2[Matéria]=B12)*Tabela2[Horas]),"") -> 0 | L12: =IFERROR(SUMPRODUCT((MONTH(Tabela2[Data])=$L$5)*(Tabela2[Matéria]=B12)*Tabela2[Horas]),"") -> 0 | M12: =IFERROR(SUMPRODUCT((MONTH(Tabela2[Data])=$M$5)*(Tabela2[Matéria]=B12)*Tabela2[Horas]),"") -> 0 | N12: =IFERROR(SUMPRODUCT((MONTH(Tabela2[Data])=$N$5)*(Tabela2[Matéria]=B12)*Tabela2[Horas]),"") -> 0 | Q12: Sextas | R12: =INT((WEEKDAY($R$5-6)-$R$5+$R6)/7) -> 9 | S12: =Configurações!J10 -> 10:00:00 | T12: 3.75 | V12: Jul | W12: 7 | X12: =Configurações!G18 -> 5 | Y12: =I26 -> 0 | AF12: Jul | AG12: 7 | AH12: =SUMPRODUCT((MONTH(Tabela5[Data])=AG12)*(Tabela5[Questões])) -> 0 | AI12: =SUMPRODUCT((MONTH(Tabela5[Data])=AG12)*(Tabela5[Acertos])) -> 0 | AJ12: 0 | AO12: =SUMIF(Tabela5[],AP12,Tabela5[Questões]) -> 0 | AP12: =Edital!C22 -> 0 | AZ12: Ago | BA12: 8 | BB12: =IFERROR(SUMPRODUCT((MONTH(Tabela5[Data])=BA12)*(Tabela5[Matéria]=Rel_Exer!$C$22)*(Tabela5[Questões])),"") -> 0 | BC12: =IFERROR(SUMPRODUCT((MONTH(Tabela5[Data])=BA12)*(Tabela5[Matéria]=Rel_Exer!$C$22)*(Tabela5[Acertos])),"") -> 0 | BD12: 0
B13: =Edital!C22 -> 0 | C13: =IFERROR(SUMPRODUCT((MONTH(Tabela2[Data])=$C$5)*(Tabela2[Matéria]=B13)*Tabela2[Horas]),"") -> 0 | D13: =IFERROR(SUMPRODUCT((MONTH(Tabela2[Data])=$D$5)*(Tabela2[Matéria]=B13)*Tabela2[Horas]),"") -> 0 | E13: =IFERROR(SUMPRODUCT((MONTH(Tabela2[Data])=$E$5)*(Tabela2[Matéria]=B13)*Tabela2[Horas]),"") -> 0 | F13: =IFERROR(SUMPRODUCT((MONTH(Tabela2[Data])=$F$5)*(Tabela2[Matéria]=B13)*Tabela2[Horas]),"") -> 0 | G13: =IFERROR(SUMPRODUCT((MONTH(Tabela2[Data])=$G$5)*(Tabela2[Matéria]=B13)*Tabela2[Horas]),"") -> 0 | H13: =IFERROR(SUMPRODUCT((MONTH(Tabela2[Data])=$H$5)*(Tabela2[Matéria]=B13)*Tabela2[Horas]),"") -> 0 | I13: =IFERROR(SUMPRODUCT((MONTH(Tabela2[Data])=$I$5)*(Tabela2[Matéria]=B13)*Tabela2[Horas]),"") -> 0 | J13: =IFERROR(SUMPRODUCT((MONTH(Tabela2[Data])=$J$5)*(Tabela2[Matéria]=B13)*Tabela2[Horas]),"") -> 0 | K13: =IFERROR(SUMPRODUCT((MONTH(Tabela2[Data])=$K$5)*(Tabela2[Matéria]=B13)*Tabela2[Horas]),"") -> 0 | L13: =IFERROR(SUMPRODUCT((MONTH(Tabela2[Data])=$L$5)*(Tabela2[Matéria]=B13)*Tabela2[Horas]),"") -> 0 | M13: =IFERROR(SUMPRODUCT((MONTH(Tabela2[Data])=$M$5)*(Tabela2[Matéria]=B13)*Tabela2[Horas]),"") -> 0 | N13: =IFERROR(SUMPRODUCT((MONTH(Tabela2[Data])=$N$5)*(Tabela2[Matéria]=B13)*Tabela2[Horas]),"") -> 0 | Q13: Sábados | R13: =INT((WEEKDAY($R$5-7)-$R$5+$R6)/7) -> 9 | S13: =Configurações!L10 -> 10:00:00 | T13: 3.75 | V13: Ago | W13: 8 | X13: =Configurações!G19 -> 5 | Y13: =J26 -> 0 | AF13: Ago | AG13: 8 | AH13: =SUMPRODUCT((MONTH(Tabela5[Data])=AG13)*(Tabela5[Questões])) -> 0 | AI13: =SUMPRODUCT((MONTH(Tabela5[Data])=AG13)*(Tabela5[Acertos])) -> 0 | AJ13: 0 | AO13: =SUMIF(Tabela5[],AP13,Tabela5[Questões]) -> 0 | AP13: =Edital!C23 -> 0 | AZ13: Set | BA13: 9 | BB13: =IFERROR(SUMPRODUCT((MONTH(Tabela5[Data])=BA13)*(Tabela5[Matéria]=Rel_Exer!$C$22)*(Tabela5[Questões])),"") -> 0 | BC13: =IFERROR(SUMPRODUCT((MONTH(Tabela5[Data])=BA13)*(Tabela5[Matéria]=Rel_Exer!$C$22)*(Tabela5[Acertos])),"") -> 0 | BD13: 0
B14: =Edital!C23 -> 0 | C14: =IFERROR(SUMPRODUCT((MONTH(Tabela2[Data])=$C$5)*(Tabela2[Matéria]=B14)*Tabela2[Horas]),"") -> 0 | D14: =IFERROR(SUMPRODUCT((MONTH(Tabela2[Data])=$D$5)*(Tabela2[Matéria]=B14)*Tabela2[Horas]),"") -> 0 | E14: =IFERROR(SUMPRODUCT((MONTH(Tabela2[Data])=$E$5)*(Tabela2[Matéria]=B14)*Tabela2[Horas]),"") -> 0 | F14: =IFERROR(SUMPRODUCT((MONTH(Tabela2[Data])=$F$5)*(Tabela2[Matéria]=B14)*Tabela2[Horas]),"") -> 0 | G14: =IFERROR(SUMPRODUCT((MONTH(Tabela2[Data])=$G$5)*(Tabela2[Matéria]=B14)*Tabela2[Horas]),"") -> 0 | H14: =IFERROR(SUMPRODUCT((MONTH(Tabela2[Data])=$H$5)*(Tabela2[Matéria]=B14)*Tabela2[Horas]),"") -> 0 | I14: =IFERROR(SUMPRODUCT((MONTH(Tabela2[Data])=$I$5)*(Tabela2[Matéria]=B14)*Tabela2[Horas]),"") -> 0 | J14: =IFERROR(SUMPRODUCT((MONTH(Tabela2[Data])=$J$5)*(Tabela2[Matéria]=B14)*Tabela2[Horas]),"") -> 0 | K14: =IFERROR(SUMPRODUCT((MONTH(Tabela2[Data])=$K$5)*(Tabela2[Matéria]=B14)*Tabela2[Horas]),"") -> 0 | L14: =IFERROR(SUMPRODUCT((MONTH(Tabela2[Data])=$L$5)*(Tabela2[Matéria]=B14)*Tabela2[Horas]),"") -> 0 | M14: =IFERROR(SUMPRODUCT((MONTH(Tabela2[Data])=$M$5)*(Tabela2[Matéria]=B14)*Tabela2[Horas]),"") -> 0 | N14: =IFERROR(SUMPRODUCT((MONTH(Tabela2[Data])=$N$5)*(Tabela2[Matéria]=B14)*Tabela2[Horas]),"") -> 0 | Q14: Domingos | R14: =INT((WEEKDAY($R$5-1)-$R$5+$R6)/7) -> 9 | S14: =Configurações!N10 -> 10:00:00 | T14: 3.75 | V14: Set | W14: 9 | X14: =Configurações!K16 -> 5.833333333 | Y14: =K26 -> 0 | AF14: Set | AG14: 9 | AH14: =SUMPRODUCT((MONTH(Tabela5[Data])=AG14)*(Tabela5[Questões])) -> 0 | AI14: =SUMPRODUCT((MONTH(Tabela5[Data])=AG14)*(Tabela5[Acertos])) -> 0 | AJ14: 0 | AO14: =SUMIF(Tabela5[],AP14,Tabela5[Questões]) -> 0 | AP14: =Edital!C24 -> 0 | AZ14: Out | BA14: 10 | BB14: =IFERROR(SUMPRODUCT((MONTH(Tabela5[Data])=BA14)*(Tabela5[Matéria]=Rel_Exer!$C$22)*(Tabela5[Questões])),"") -> 0 | BC14: =IFERROR(SUMPRODUCT((MONTH(Tabela5[Data])=BA14)*(Tabela5[Matéria]=Rel_Exer!$C$22)*(Tabela5[Acertos])),"") -> 0 | BD14: 0
B15: =Edital!C24 -> 0 | C15: =IFERROR(SUMPRODUCT((MONTH(Tabela2[Data])=$C$5)*(Tabela2[Matéria]=B15)*Tabela2[Horas]),"") -> 0 | D15: =IFERROR(SUMPRODUCT((MONTH(Tabela2[Data])=$D$5)*(Tabela2[Matéria]=B15)*Tabela2[Horas]),"") -> 0 | E15: =IFERROR(SUMPRODUCT((MONTH(Tabela2[Data])=$E$5)*(Tabela2[Matéria]=B15)*Tabela2[Horas]),"") -> 0 | F15: =IFERROR(SUMPRODUCT((MONTH(Tabela2[Data])=$F$5)*(Tabela2[Matéria]=B15)*Tabela2[Horas]),"") -> 0 | G15: =IFERROR(SUMPRODUCT((MONTH(Tabela2[Data])=$G$5)*(Tabela2[Matéria]=B15)*Tabela2[Horas]),"") -> 0 | H15: =IFERROR(SUMPRODUCT((MONTH(Tabela2[Data])=$H$5)*(Tabela2[Matéria]=B15)*Tabela2[Horas]),"") -> 0 | I15: =IFERROR(SUMPRODUCT((MONTH(Tabela2[Data])=$I$5)*(Tabela2[Matéria]=B15)*Tabela2[Horas]),"") -> 0 | J15: =IFERROR(SUMPRODUCT((MONTH(Tabela2[Data])=$J$5)*(Tabela2[Matéria]=B15)*Tabela2[Horas]),"") -> 0 | K15: =IFERROR(SUMPRODUCT((MONTH(Tabela2[Data])=$K$5)*(Tabela2[Matéria]=B15)*Tabela2[Horas]),"") -> 0 | L15: =IFERROR(SUMPRODUCT((MONTH(Tabela2[Data])=$L$5)*(Tabela2[Matéria]=B15)*Tabela2[Horas]),"") -> 0 | M15: =IFERROR(SUMPRODUCT((MONTH(Tabela2[Data])=$M$5)*(Tabela2[Matéria]=B15)*Tabela2[Horas]),"") -> 0 | N15: =IFERROR(SUMPRODUCT((MONTH(Tabela2[Data])=$N$5)*(Tabela2[Matéria]=B15)*Tabela2[Horas]),"") -> 0 | R15: =SUM(R8:R14) -> 60 | T15: =IFERROR(SUM(T8:T14),"") -> 25 | V15: Out | W15: 10 | X15: =Configurações!K17 -> 5.833333333 | Y15: =L26 -> 0 | AF15: Out | AG15: 10 | AH15: =SUMPRODUCT((MONTH(Tabela5[Data])=AG15)*(Tabela5[Questões])) -> 0 | AI15: =SUMPRODUCT((MONTH(Tabela5[Data])=AG15)*(Tabela5[Acertos])) -> 0 | AJ15: 0 | AO15: =SUMIF(Tabela5[],AP15,Tabela5[Questões]) -> 0 | AP15: =Edital!C25 -> 0 | AZ15: Nov | BA15: 11 | BB15: =IFERROR(SUMPRODUCT((MONTH(Tabela5[Data])=BA15)*(Tabela5[Matéria]=Rel_Exer!$C$22)*(Tabela5[Questões])),"") -> 0 | BC15: =IFERROR(SUMPRODUCT((MONTH(Tabela5[Data])=BA15)*(Tabela5[Matéria]=Rel_Exer!$C$22)*(Tabela5[Acertos])),"") -> 0 | BD15: 0
B16: =Edital!C25 -> 0 | C16: =IFERROR(SUMPRODUCT((MONTH(Tabela2[Data])=$C$5)*(Tabela2[Matéria]=B16)*Tabela2[Horas]),"") -> 0 | D16: =IFERROR(SUMPRODUCT((MONTH(Tabela2[Data])=$D$5)*(Tabela2[Matéria]=B16)*Tabela2[Horas]),"") -> 0 | E16: =IFERROR(SUMPRODUCT((MONTH(Tabela2[Data])=$E$5)*(Tabela2[Matéria]=B16)*Tabela2[Horas]),"") -> 0 | F16: =IFERROR(SUMPRODUCT((MONTH(Tabela2[Data])=$F$5)*(Tabela2[Matéria]=B16)*Tabela2[Horas]),"") -> 0 | G16: =IFERROR(SUMPRODUCT((MONTH(Tabela2[Data])=$G$5)*(Tabela2[Matéria]=B16)*Tabela2[Horas]),"") -> 0 | H16: =IFERROR(SUMPRODUCT((MONTH(Tabela2[Data])=$H$5)*(Tabela2[Matéria]=B16)*Tabela2[Horas]),"") -> 0 | I16: =IFERROR(SUMPRODUCT((MONTH(Tabela2[Data])=$I$5)*(Tabela2[Matéria]=B16)*Tabela2[Horas]),"") -> 0 | J16: =IFERROR(SUMPRODUCT((MONTH(Tabela2[Data])=$J$5)*(Tabela2[Matéria]=B16)*Tabela2[Horas]),"") -> 0 | K16: =IFERROR(SUMPRODUCT((MONTH(Tabela2[Data])=$K$5)*(Tabela2[Matéria]=B16)*Tabela2[Horas]),"") -> 0 | L16: =IFERROR(SUMPRODUCT((MONTH(Tabela2[Data])=$L$5)*(Tabela2[Matéria]=B16)*Tabela2[Horas]),"") -> 0 | M16: =IFERROR(SUMPRODUCT((MONTH(Tabela2[Data])=$M$5)*(Tabela2[Matéria]=B16)*Tabela2[Horas]),"") -> 0 | N16: =IFERROR(SUMPRODUCT((MONTH(Tabela2[Data])=$N$5)*(Tabela2[Matéria]=B16)*Tabela2[Horas]),"") -> 0 | V16: Nov | W16: 11 | X16: =Configurações!K18 -> 5.833333333 | Y16: =M26 -> 0 | AF16: Nov | AG16: 11 | AH16: =SUMPRODUCT((MONTH(Tabela5[Data])=AG16)*(Tabela5[Questões])) -> 0 | AI16: =SUMPRODUCT((MONTH(Tabela5[Data])=AG16)*(Tabela5[Acertos])) -> 0 | AJ16: 0 | AO16: =SUMIF(Tabela5[],AP16,Tabela5[Questões]) -> 0 | AP16: =Edital!C26 -> 0 | AZ16: Dez | BA16: 12 | BB16: =IFERROR(SUMPRODUCT((MONTH(Tabela5[Data])=BA16)*(Tabela5[Matéria]=Rel_Exer!$C$22)*(Tabela5[Questões])),"") -> 10 | BC16: =IFERROR(SUMPRODUCT((MONTH(Tabela5[Data])=BA16)*(Tabela5[Matéria]=Rel_Exer!$C$22)*(Tabela5[Acertos])),"") -> 7 | BD16: 3 | BE16: 70% | BF16: 30%
B17: =Edital!C26 -> 0 | C17: =IFERROR(SUMPRODUCT((MONTH(Tabela2[Data])=$C$5)*(Tabela2[Matéria]=B17)*Tabela2[Horas]),"") -> 0 | D17: =IFERROR(SUMPRODUCT((MONTH(Tabela2[Data])=$D$5)*(Tabela2[Matéria]=B17)*Tabela2[Horas]),"") -> 0 | E17: =IFERROR(SUMPRODUCT((MONTH(Tabela2[Data])=$E$5)*(Tabela2[Matéria]=B17)*Tabela2[Horas]),"") -> 0 | F17: =IFERROR(SUMPRODUCT((MONTH(Tabela2[Data])=$F$5)*(Tabela2[Matéria]=B17)*Tabela2[Horas]),"") -> 0 | G17: =IFERROR(SUMPRODUCT((MONTH(Tabela2[Data])=$G$5)*(Tabela2[Matéria]=B17)*Tabela2[Horas]),"") -> 0 | H17: =IFERROR(SUMPRODUCT((MONTH(Tabela2[Data])=$H$5)*(Tabela2[Matéria]=B17)*Tabela2[Horas]),"") -> 0 | I17: =IFERROR(SUMPRODUCT((MONTH(Tabela2[Data])=$I$5)*(Tabela2[Matéria]=B17)*Tabela2[Horas]),"") -> 0 | J17: =IFERROR(SUMPRODUCT((MONTH(Tabela2[Data])=$J$5)*(Tabela2[Matéria]=B17)*Tabela2[Horas]),"") -> 0 | K17: =IFERROR(SUMPRODUCT((MONTH(Tabela2[Data])=$K$5)*(Tabela2[Matéria]=B17)*Tabela2[Horas]),"") -> 0 | L17: =IFERROR(SUMPRODUCT((MONTH(Tabela2[Data])=$L$5)*(Tabela2[Matéria]=B17)*Tabela2[Horas]),"") -> 0 | M17: =IFERROR(SUMPRODUCT((MONTH(Tabela2[Data])=$M$5)*(Tabela2[Matéria]=B17)*Tabela2[Horas]),"") -> 0 | N17: =IFERROR(SUMPRODUCT((MONTH(Tabela2[Data])=$N$5)*(Tabela2[Matéria]=B17)*Tabela2[Horas]),"") -> 0 | V17: Dez | W17: 12 | X17: =Configurações!K19 -> 5.833333333 | Y17: =N26 -> 0 | AF17: Dez | AG17: 12 | AH17: =SUMPRODUCT((MONTH(Tabela5[Data])=AG17)*(Tabela5[Questões])) -> 74 | AI17: =SUMPRODUCT((MONTH(Tabela5[Data])=AG17)*(Tabela5[Acertos])) -> 54 | AJ17: 20 | AK17: 73% | AL17: 73% | AM17: 27% | AO17: =SUMIF(Tabela5[],AP17,Tabela5[Questões]) -> 0 | AP17: =Edital!C27 -> 0
B18: =Edital!C27 -> 0 | C18: =IFERROR(SUMPRODUCT((MONTH(Tabela2[Data])=$C$5)*(Tabela2[Matéria]=B18)*Tabela2[Horas]),"") -> 0 | D18: =IFERROR(SUMPRODUCT((MONTH(Tabela2[Data])=$D$5)*(Tabela2[Matéria]=B18)*Tabela2[Horas]),"") -> 0 | E18: =IFERROR(SUMPRODUCT((MONTH(Tabela2[Data])=$E$5)*(Tabela2[Matéria]=B18)*Tabela2[Horas]),"") -> 0 | F18: =IFERROR(SUMPRODUCT((MONTH(Tabela2[Data])=$F$5)*(Tabela2[Matéria]=B18)*Tabela2[Horas]),"") -> 0 | G18: =IFERROR(SUMPRODUCT((MONTH(Tabela2[Data])=$G$5)*(Tabela2[Matéria]=B18)*Tabela2[Horas]),"") -> 0 | H18: =IFERROR(SUMPRODUCT((MONTH(Tabela2[Data])=$H$5)*(Tabela2[Matéria]=B18)*Tabela2[Horas]),"") -> 0 | I18: =IFERROR(SUMPRODUCT((MONTH(Tabela2[Data])=$I$5)*(Tabela2[Matéria]=B18)*Tabela2[Horas]),"") -> 0 | J18: =IFERROR(SUMPRODUCT((MONTH(Tabela2[Data])=$J$5)*(Tabela2[Matéria]=B18)*Tabela2[Horas]),"") -> 0 | K18: =IFERROR(SUMPRODUCT((MONTH(Tabela2[Data])=$K$5)*(Tabela2[Matéria]=B18)*Tabela2[Horas]),"") -> 0 | L18: =IFERROR(SUMPRODUCT((MONTH(Tabela2[Data])=$L$5)*(Tabela2[Matéria]=B18)*Tabela2[Horas]),"") -> 0 | M18: =IFERROR(SUMPRODUCT((MONTH(Tabela2[Data])=$M$5)*(Tabela2[Matéria]=B18)*Tabela2[Horas]),"") -> 0 | N18: =IFERROR(SUMPRODUCT((MONTH(Tabela2[Data])=$N$5)*(Tabela2[Matéria]=B18)*Tabela2[Horas]),"") -> 0 | AO18: =SUMIF(Tabela5[],AP18,Tabela5[Questões]) -> 0 | AP18: =Edital!C28 -> 0
B19: =Edital!C28 -> 0 | C19: =IFERROR(SUMPRODUCT((MONTH(Tabela2[Data])=$C$5)*(Tabela2[Matéria]=B19)*Tabela2[Horas]),"") -> 0 | D19: =IFERROR(SUMPRODUCT((MONTH(Tabela2[Data])=$D$5)*(Tabela2[Matéria]=B19)*Tabela2[Horas]),"") -> 0 | E19: =IFERROR(SUMPRODUCT((MONTH(Tabela2[Data])=$E$5)*(Tabela2[Matéria]=B19)*Tabela2[Horas]),"") -> 0 | F19: =IFERROR(SUMPRODUCT((MONTH(Tabela2[Data])=$F$5)*(Tabela2[Matéria]=B19)*Tabela2[Horas]),"") -> 0 | G19: =IFERROR(SUMPRODUCT((MONTH(Tabela2[Data])=$G$5)*(Tabela2[Matéria]=B19)*Tabela2[Horas]),"") -> 0 | H19: =IFERROR(SUMPRODUCT((MONTH(Tabela2[Data])=$H$5)*(Tabela2[Matéria]=B19)*Tabela2[Horas]),"") -> 0 | I19: =IFERROR(SUMPRODUCT((MONTH(Tabela2[Data])=$I$5)*(Tabela2[Matéria]=B19)*Tabela2[Horas]),"") -> 0 | J19: =IFERROR(SUMPRODUCT((MONTH(Tabela2[Data])=$J$5)*(Tabela2[Matéria]=B19)*Tabela2[Horas]),"") -> 0 | K19: =IFERROR(SUMPRODUCT((MONTH(Tabela2[Data])=$K$5)*(Tabela2[Matéria]=B19)*Tabela2[Horas]),"") -> 0 | L19: =IFERROR(SUMPRODUCT((MONTH(Tabela2[Data])=$L$5)*(Tabela2[Matéria]=B19)*Tabela2[Horas]),"") -> 0 | M19: =IFERROR(SUMPRODUCT((MONTH(Tabela2[Data])=$M$5)*(Tabela2[Matéria]=B19)*Tabela2[Horas]),"") -> 0 | N19: =IFERROR(SUMPRODUCT((MONTH(Tabela2[Data])=$N$5)*(Tabela2[Matéria]=B19)*Tabela2[Horas]),"") -> 0 | AF19: Simulados | AO19: =SUMIF(Tabela5[],AP19,Tabela5[Questões]) -> 0 | AP19: =Edital!C29 -> 0
B20: =Edital!C29 -> 0 | C20: =IFERROR(SUMPRODUCT((MONTH(Tabela2[Data])=$C$5)*(Tabela2[Matéria]=B20)*Tabela2[Horas]),"") -> 0 | D20: =IFERROR(SUMPRODUCT((MONTH(Tabela2[Data])=$D$5)*(Tabela2[Matéria]=B20)*Tabela2[Horas]),"") -> 0 | E20: =IFERROR(SUMPRODUCT((MONTH(Tabela2[Data])=$E$5)*(Tabela2[Matéria]=B20)*Tabela2[Horas]),"") -> 0 | F20: =IFERROR(SUMPRODUCT((MONTH(Tabela2[Data])=$F$5)*(Tabela2[Matéria]=B20)*Tabela2[Horas]),"") -> 0 | G20: =IFERROR(SUMPRODUCT((MONTH(Tabela2[Data])=$G$5)*(Tabela2[Matéria]=B20)*Tabela2[Horas]),"") -> 0 | H20: =IFERROR(SUMPRODUCT((MONTH(Tabela2[Data])=$H$5)*(Tabela2[Matéria]=B20)*Tabela2[Horas]),"") -> 0 | I20: =IFERROR(SUMPRODUCT((MONTH(Tabela2[Data])=$I$5)*(Tabela2[Matéria]=B20)*Tabela2[Horas]),"") -> 0 | J20: =IFERROR(SUMPRODUCT((MONTH(Tabela2[Data])=$J$5)*(Tabela2[Matéria]=B20)*Tabela2[Horas]),"") -> 0 | K20: =IFERROR(SUMPRODUCT((MONTH(Tabela2[Data])=$K$5)*(Tabela2[Matéria]=B20)*Tabela2[Horas]),"") -> 0 | L20: =IFERROR(SUMPRODUCT((MONTH(Tabela2[Data])=$L$5)*(Tabela2[Matéria]=B20)*Tabela2[Horas]),"") -> 0 | M20: =IFERROR(SUMPRODUCT((MONTH(Tabela2[Data])=$M$5)*(Tabela2[Matéria]=B20)*Tabela2[Horas]),"") -> 0 | N20: =IFERROR(SUMPRODUCT((MONTH(Tabela2[Data])=$N$5)*(Tabela2[Matéria]=B20)*Tabela2[Horas]),"") -> 0 | AO20: =SUMIF(Tabela5[],AP20,Tabela5[Questões]) -> 0 | AP20: =Edital!C30 -> 0
B21: =Edital!C30 -> 0 | C21: =IFERROR(SUMPRODUCT((MONTH(Tabela2[Data])=$C$5)*(Tabela2[Matéria]=B21)*Tabela2[Horas]),"") -> 0 | D21: =IFERROR(SUMPRODUCT((MONTH(Tabela2[Data])=$D$5)*(Tabela2[Matéria]=B21)*Tabela2[Horas]),"") -> 0 | E21: =IFERROR(SUMPRODUCT((MONTH(Tabela2[Data])=$E$5)*(Tabela2[Matéria]=B21)*Tabela2[Horas]),"") -> 0 | F21: =IFERROR(SUMPRODUCT((MONTH(Tabela2[Data])=$F$5)*(Tabela2[Matéria]=B21)*Tabela2[Horas]),"") -> 0 | G21: =IFERROR(SUMPRODUCT((MONTH(Tabela2[Data])=$G$5)*(Tabela2[Matéria]=B21)*Tabela2[Horas]),"") -> 0 | H21: =IFERROR(SUMPRODUCT((MONTH(Tabela2[Data])=$H$5)*(Tabela2[Matéria]=B21)*Tabela2[Horas]),"") -> 0 | I21: =IFERROR(SUMPRODUCT((MONTH(Tabela2[Data])=$I$5)*(Tabela2[Matéria]=B21)*Tabela2[Horas]),"") -> 0 | J21: =IFERROR(SUMPRODUCT((MONTH(Tabela2[Data])=$J$5)*(Tabela2[Matéria]=B21)*Tabela2[Horas]),"") -> 0 | K21: =IFERROR(SUMPRODUCT((MONTH(Tabela2[Data])=$K$5)*(Tabela2[Matéria]=B21)*Tabela2[Horas]),"") -> 0 | L21: =IFERROR(SUMPRODUCT((MONTH(Tabela2[Data])=$L$5)*(Tabela2[Matéria]=B21)*Tabela2[Horas]),"") -> 0 | M21: =IFERROR(SUMPRODUCT((MONTH(Tabela2[Data])=$M$5)*(Tabela2[Matéria]=B21)*Tabela2[Horas]),"") -> 0 | N21: =IFERROR(SUMPRODUCT((MONTH(Tabela2[Data])=$N$5)*(Tabela2[Matéria]=B21)*Tabela2[Horas]),"") -> 0 | AF21: Simulado | AG21: Banca | AH21: Média | AO21: =SUMIF(Tabela5[],AP21,Tabela5[Questões]) -> 0 | AP21: =Edital!C31 -> 0
B22: =Edital!C31 -> 0 | C22: =IFERROR(SUMPRODUCT((MONTH(Tabela2[Data])=$C$5)*(Tabela2[Matéria]=B22)*Tabela2[Horas]),"") -> 0 | D22: =IFERROR(SUMPRODUCT((MONTH(Tabela2[Data])=$D$5)*(Tabela2[Matéria]=B22)*Tabela2[Horas]),"") -> 0 | E22: =IFERROR(SUMPRODUCT((MONTH(Tabela2[Data])=$E$5)*(Tabela2[Matéria]=B22)*Tabela2[Horas]),"") -> 0 | F22: =IFERROR(SUMPRODUCT((MONTH(Tabela2[Data])=$F$5)*(Tabela2[Matéria]=B22)*Tabela2[Horas]),"") -> 0 | G22: =IFERROR(SUMPRODUCT((MONTH(Tabela2[Data])=$G$5)*(Tabela2[Matéria]=B22)*Tabela2[Horas]),"") -> 0 | H22: =IFERROR(SUMPRODUCT((MONTH(Tabela2[Data])=$H$5)*(Tabela2[Matéria]=B22)*Tabela2[Horas]),"") -> 0 | I22: =IFERROR(SUMPRODUCT((MONTH(Tabela2[Data])=$I$5)*(Tabela2[Matéria]=B22)*Tabela2[Horas]),"") -> 0 | J22: =IFERROR(SUMPRODUCT((MONTH(Tabela2[Data])=$J$5)*(Tabela2[Matéria]=B22)*Tabela2[Horas]),"") -> 0 | K22: =IFERROR(SUMPRODUCT((MONTH(Tabela2[Data])=$K$5)*(Tabela2[Matéria]=B22)*Tabela2[Horas]),"") -> 0 | L22: =IFERROR(SUMPRODUCT((MONTH(Tabela2[Data])=$L$5)*(Tabela2[Matéria]=B22)*Tabela2[Horas]),"") -> 0 | M22: =IFERROR(SUMPRODUCT((MONTH(Tabela2[Data])=$M$5)*(Tabela2[Matéria]=B22)*Tabela2[Horas]),"") -> 0 | N22: =IFERROR(SUMPRODUCT((MONTH(Tabela2[Data])=$N$5)*(Tabela2[Matéria]=B22)*Tabela2[Horas]),"") -> 0 | AF22: =Simulados!D5 -> SIMULADO 1 | AG22: =Simulados!F7 -> VUNESP | AH22: =Simulados!F9 ->  | AI22: =AF22&" - "&AG22 -> SIMULADO 1 - VUNESP | AO22: =SUMIF(Tabela5[],AP22,Tabela5[Questões]) -> 0 | AP22: =Edital!C32 -> 0
B23: =Edital!C32 -> 0 | C23: =IFERROR(SUMPRODUCT((MONTH(Tabela2[Data])=$C$5)*(Tabela2[Matéria]=B23)*Tabela2[Horas]),"") -> 0 | D23: =IFERROR(SUMPRODUCT((MONTH(Tabela2[Data])=$D$5)*(Tabela2[Matéria]=B23)*Tabela2[Horas]),"") -> 0 | E23: =IFERROR(SUMPRODUCT((MONTH(Tabela2[Data])=$E$5)*(Tabela2[Matéria]=B23)*Tabela2[Horas]),"") -> 0 | F23: =IFERROR(SUMPRODUCT((MONTH(Tabela2[Data])=$F$5)*(Tabela2[Matéria]=B23)*Tabela2[Horas]),"") -> 0 | G23: =IFERROR(SUMPRODUCT((MONTH(Tabela2[Data])=$G$5)*(Tabela2[Matéria]=B23)*Tabela2[Horas]),"") -> 0 | H23: =IFERROR(SUMPRODUCT((MONTH(Tabela2[Data])=$H$5)*(Tabela2[Matéria]=B23)*Tabela2[Horas]),"") -> 0 | I23: =IFERROR(SUMPRODUCT((MONTH(Tabela2[Data])=$I$5)*(Tabela2[Matéria]=B23)*Tabela2[Horas]),"") -> 0 | J23: =IFERROR(SUMPRODUCT((MONTH(Tabela2[Data])=$J$5)*(Tabela2[Matéria]=B23)*Tabela2[Horas]),"") -> 0 | K23: =IFERROR(SUMPRODUCT((MONTH(Tabela2[Data])=$K$5)*(Tabela2[Matéria]=B23)*Tabela2[Horas]),"") -> 0 | L23: =IFERROR(SUMPRODUCT((MONTH(Tabela2[Data])=$L$5)*(Tabela2[Matéria]=B23)*Tabela2[Horas]),"") -> 0 | M23: =IFERROR(SUMPRODUCT((MONTH(Tabela2[Data])=$M$5)*(Tabela2[Matéria]=B23)*Tabela2[Horas]),"") -> 0 | N23: =IFERROR(SUMPRODUCT((MONTH(Tabela2[Data])=$N$5)*(Tabela2[Matéria]=B23)*Tabela2[Horas]),"") -> 0 | AF23: =Simulados!J5 -> SIMULADO 2 | AG23: =Simulados!L7 -> 0% | AH23: =Simulados!L9 ->  | AI23: =AF23&" - "&AG23 -> SIMULADO 2 - 0 | AO23: =SUMIF(Tabela5[],AP23,Tabela5[Questões]) -> 0 | AP23: =Edital!C33 -> 0
B24: =Edital!C33 -> 0 | C24: =IFERROR(SUMPRODUCT((MONTH(Tabela2[Data])=$C$5)*(Tabela2[Matéria]=B24)*Tabela2[Horas]),"") -> 0 | D24: =IFERROR(SUMPRODUCT((MONTH(Tabela2[Data])=$D$5)*(Tabela2[Matéria]=B24)*Tabela2[Horas]),"") -> 0 | E24: =IFERROR(SUMPRODUCT((MONTH(Tabela2[Data])=$E$5)*(Tabela2[Matéria]=B24)*Tabela2[Horas]),"") -> 0 | F24: =IFERROR(SUMPRODUCT((MONTH(Tabela2[Data])=$F$5)*(Tabela2[Matéria]=B24)*Tabela2[Horas]),"") -> 0 | G24: =IFERROR(SUMPRODUCT((MONTH(Tabela2[Data])=$G$5)*(Tabela2[Matéria]=B24)*Tabela2[Horas]),"") -> 0 | H24: =IFERROR(SUMPRODUCT((MONTH(Tabela2[Data])=$H$5)*(Tabela2[Matéria]=B24)*Tabela2[Horas]),"") -> 0 | I24: =IFERROR(SUMPRODUCT((MONTH(Tabela2[Data])=$I$5)*(Tabela2[Matéria]=B24)*Tabela2[Horas]),"") -> 0 | J24: =IFERROR(SUMPRODUCT((MONTH(Tabela2[Data])=$J$5)*(Tabela2[Matéria]=B24)*Tabela2[Horas]),"") -> 0 | K24: =IFERROR(SUMPRODUCT((MONTH(Tabela2[Data])=$K$5)*(Tabela2[Matéria]=B24)*Tabela2[Horas]),"") -> 0 | L24: =IFERROR(SUMPRODUCT((MONTH(Tabela2[Data])=$L$5)*(Tabela2[Matéria]=B24)*Tabela2[Horas]),"") -> 0 | M24: =IFERROR(SUMPRODUCT((MONTH(Tabela2[Data])=$M$5)*(Tabela2[Matéria]=B24)*Tabela2[Horas]),"") -> 0 | N24: =IFERROR(SUMPRODUCT((MONTH(Tabela2[Data])=$N$5)*(Tabela2[Matéria]=B24)*Tabela2[Horas]),"") -> 0 | AF24: =Simulados!P5 -> SIMULADO 3 | AG24: =Simulados!R7 -> 0% | AH24: =Simulados!R9 ->  | AI24: SIMULADO 3 - 0 | AO24: =SUMIF(Tabela5[],AP24,Tabela5[Questões]) -> 0 | AP24: =Edital!C34 -> 0
B25: =Edital!C34 -> 0 | C25: =IFERROR(SUMPRODUCT((MONTH(Tabela2[Data])=$C$5)*(Tabela2[Matéria]=B25)*Tabela2[Horas]),"") -> 0 | D25: =IFERROR(SUMPRODUCT((MONTH(Tabela2[Data])=$D$5)*(Tabela2[Matéria]=B25)*Tabela2[Horas]),"") -> 0 | E25: =IFERROR(SUMPRODUCT((MONTH(Tabela2[Data])=$E$5)*(Tabela2[Matéria]=B25)*Tabela2[Horas]),"") -> 0 | F25: =IFERROR(SUMPRODUCT((MONTH(Tabela2[Data])=$F$5)*(Tabela2[Matéria]=B25)*Tabela2[Horas]),"") -> 0 | G25: =IFERROR(SUMPRODUCT((MONTH(Tabela2[Data])=$G$5)*(Tabela2[Matéria]=B25)*Tabela2[Horas]),"") -> 0 | H25: =IFERROR(SUMPRODUCT((MONTH(Tabela2[Data])=$H$5)*(Tabela2[Matéria]=B25)*Tabela2[Horas]),"") -> 0 | I25: =IFERROR(SUMPRODUCT((MONTH(Tabela2[Data])=$I$5)*(Tabela2[Matéria]=B25)*Tabela2[Horas]),"") -> 0 | J25: =IFERROR(SUMPRODUCT((MONTH(Tabela2[Data])=$J$5)*(Tabela2[Matéria]=B25)*Tabela2[Horas]),"") -> 0 | K25: =IFERROR(SUMPRODUCT((MONTH(Tabela2[Data])=$K$5)*(Tabela2[Matéria]=B25)*Tabela2[Horas]),"") -> 0 | L25: =IFERROR(SUMPRODUCT((MONTH(Tabela2[Data])=$L$5)*(Tabela2[Matéria]=B25)*Tabela2[Horas]),"") -> 0 | M25: =IFERROR(SUMPRODUCT((MONTH(Tabela2[Data])=$M$5)*(Tabela2[Matéria]=B25)*Tabela2[Horas]),"") -> 0 | N25: =IFERROR(SUMPRODUCT((MONTH(Tabela2[Data])=$N$5)*(Tabela2[Matéria]=B25)*Tabela2[Horas]),"") -> 0 | AF25: =Simulados!V5 -> SIMULADO 4 | AG25: =Simulados!X7 -> 0% | AH25: =Simulados!X9 ->  | AI25: SIMULADO 4 - 0
B26: =IFERROR(SUM(C26:N26),"") -> 0 | C26: =IFERROR(SUM(C6:C25),"") -> 0 | D26: =IFERROR(SUM(D6:D25),"") -> 0 | E26: 0 | F26: 0 | G26: 0 | H26: 0 | I26: 0 | J26: 0 | K26: 0 | L26: 0 | M26: 0 | N26: 0 | AF26: =Simulados!AB5 -> SIMULADO 5 | AG26: =Simulados!AD7 -> 0% | AH26: =Simulados!AD9 ->  | AI26: SIMULADO 5 - 0
AF27: =Simulados!AH5 -> SIMULADO 6 | AG27: =Simulados!AJ7 -> 0% | AH27: =Simulados!AJ9 ->  | AI27: SIMULADO 6 - 0
B28: Total de questões resolvidas por matéria | AF28: =Simulados!AN5 -> SIMULADO 7 | AG28: =Simulados!AP7 -> 0% | AH28: =Simulados!AP9 ->  | AI28: SIMULADO 7 - 0
B29: Matéria x Mês | C29: 1 | D29: 2 | E29: 3 | F29: 4 | G29: 5 | H29: 6 | I29: 7 | J29: 8 | K29: 9 | L29: 10 | M29: 11 | N29: 12 | O29: Total Horas x Ano | AF29: =Simulados!AT5 -> SIMULADO 8 | AG29: =Simulados!AV7 -> 0% | AH29: =Simulados!AV9 ->  | AI29: SIMULADO 8 - 0
AF30: =Simulados!AZ5 -> SIMULADO 9 | AG30: =Simulados!BB7 -> 0% | AH30: =Simulados!BB9 ->  | AI30: SIMULADO 9 - 0
AF31: =Simulados!BF5 -> SIMULADO 10 | AG31: =Simulados!BH7 -> 0% | AH31: =Simulados!BH9 ->  | AI31: SIMULADO 10 - 0
AF32: =Simulados!BL5 -> SIMULADO 11 | AG32: =Simulados!BN7 -> 0% | AH32: =Simulados!BN9 ->  | AI32: SIMULADO 11 - 0
AF33: =Simulados!BR5 -> SIMULADO 12 | AG33: =Simulados!BT7 -> 0% | AH33: =Simulados!BT9 ->  | AI33: SIMULADO 12 - 0
AF34: =Simulados!BX5 -> SIMULADO 13 | AG34: =Simulados!BZ7 -> 0% | AH34: =Simulados!BZ9 ->  | AI34: SIMULADO 13 - 0
AF35: =Simulados!CD5 -> SIMULADO 14 | AG35: =Simulados!CF7 -> 0% | AH35: =Simulados!CF9 ->  | AI35: SIMULADO 14 - 0
AF36: =Simulados!CJ5 -> SIMULADO 15 | AG36: =Simulados!CL7 -> 0% | AH36: =Simulados!CL9 ->  | AI36: SIMULADO 15 - 0
AF37: =Simulados!CP5 -> SIMULADO 16 | AG37: =Simulados!CR7 -> 0% | AH37: =Simulados!CR9 ->  | AI37: SIMULADO 16 - 0
AF38: =Simulados!CV5 -> SIMULADO 17 | AG38: =Simulados!CX7 -> 0% | AH38: =Simulados!CX9 ->  | AI38: SIMULADO 17 - 0
AF39: =Simulados!DB5 -> SIMULADO 18 | AG39: =Simulados!DD7 -> 0% | AH39: =Simulados!DD9 ->  | AI39: SIMULADO 18 - 0
AF40: =Simulados!DH5 -> SIMULADO 19 | AG40: =Simulados!DJ7 -> 0% | AH40: =Simulados!DJ9 ->  | AI40: SIMULADO 19 - 0
AF41: =Simulados!DN5 -> SIMULADO 20 | AG41: =Simulados!DP7 -> 0% | AH41: =Simulados!DP9 ->  | AI41: SIMULADO 20 - 0

Sheet 1
K4: Assuntos | L4: Finalizado | M4: Pendentes
K5: =COUNTA(O10:O259) -> 2 | L5: =COUNTIF(O10:O259,"Sim") -> 1 | M5: =K5-L5 -> 1 | O5: =L5/K5 -> 50%
B7: =Edital!C15 -> LÍNGUA PORTUGUESA | E7: Teoria | G7: Revisões | O7: Teoria | P7: =COUNTIF($P$10:$P$259,"<>0") -> 0
B9: Assuntos | E9: Data estudo | G9: 1 | H9: 7 | I9: 15 | J9: 30 | K9: 60 | L9: 90 | M9: 140 | O9: Finalizei o assunto?
B10: SUBTÓPICO | G10: =IF($E10="","",$E10+$G$9) ->  | H10: =IF($E10="","",$E10+$H$9) ->  | I10: =IF($E10="","",$E10+$I$9) ->  | J10: =IF($E10="","",$E10+$J$9) ->  | K10: =IF($E10="","",$E10+$K$9) ->  | L10: =IF($E10="","",$E10+$L$9) ->  | M10: =IF($E10="","",$E10+$M$9) ->  | P10: =IFERROR(IF(G10=TODAY(),"1",IF(H10=TODAY(),"1",IF(I10=TODAY(),"1",IF(J10=TODAY(),"1",IF(K10=TODAY(),"1",IF(L10=TODAY(),"1",IF(M10=TODAY(),"1",))))))),"") -> 0
C11: PONTUAÇÃO | E11: 2018-12-15 | G11: 2018-12-16 | H11: 2018-12-22 | I11: 2018-12-30 | J11: 2019-01-14 | K11: 2019-02-13 | L11: 2019-03-15 | M11: 2019-05-04 | O11: Sim | P11: =IFERROR(IF(G11=TODAY(),"1",IF(H11=TODAY(),"1",IF(I11=TODAY(),"1",IF(J11=TODAY(),"1",IF(K11=TODAY(),"1",IF(L11=TODAY(),"1",IF(M11=TODAY(),"1",))))))),"") -> 0
C12: SINTAXE | E12: 2018-12-16 | G12: 2018-12-17 | H12: 2018-12-23 | I12: 2018-12-31 | J12: 2019-01-15 | K12: 2019-02-14 | L12: 2019-03-16 | M12: 2019-05-05 | O12: Não | P12: =IFERROR(IF(G12=TODAY(),"1",IF(H12=TODAY(),"1",IF(I12=TODAY(),"1",IF(J12=TODAY(),"1",IF(K12=TODAY(),"1",IF(L12=TODAY(),"1",IF(M12=TODAY(),"1",))))))),"") -> 0
P13: 0
P14: 0
P15: 0
P16: 0
P17: 0
P18: 0
P19: 0
P20: 0
P21: 0
P22: 0
P23: 0
P24: 0
P25: 0
P26: 0
P27: 0
P28: 0
P29: 0
P30: 0
P31: 0
P32: 0
P33: 0
P34: 0
P35: 0
P36: 0
P37: 0
P38: 0
P39: 0
P40: 0
P41: 0
P42: 0
P43: 0
P44: 0
P45: 0
P46: 0
P47: 0
P48: 0
P49: 0
P50: 0
P51: 0
P52: 0
P53: 0
P54: 0
P55: 0
P56: 0
P57: 0
P58: 0
P59: 0
P60: 0
P61: 0
P62: 0
P63: 0
P64: 0
P65: 0
P66: 0
P67: 0
P68: 0
P69: 0
P70: 0
P71: 0
P72: 0
P73: 0
G74: =IF($E74="","",$E74+$G$9) ->  | H74: =IF($E74="","",$E74+$H$9) ->  | I74: =IF($E74="","",$E74+$I$9) ->  | J74: =IF($E74="","",$E74+$J$9) ->  | K74: =IF($E74="","",$E74+$K$9) ->  | L74: =IF($E74="","",$E74+$L$9) ->  | M74: =IF($E74="","",$E74+$M$9) ->  | P74: 0
P75: 0
P76: =IFERROR(IF(G76=TODAY(),"1",IF(H76=TODAY(),"1",IF(I76=TODAY(),"1",IF(J76=TODAY(),"1",IF(K76=TODAY(),"1",IF(L76=TODAY(),"1",IF(M76=TODAY(),"1",))))))),"") -> 0
P77: 0
P78: 0
P79: 0
P80: 0
P81: 0
P82: 0
P83: 0
P84: 0
P85: 0
P86: 0
P87: 0
P88: 0
P89: 0
P90: 0
P91: 0
P92: 0
P93: 0
P94: 0
P95: 0
P96: 0
P97: 0
P98: 0
P99: 0
P100: 0
P101: 0
P102: 0
P103: 0
P104: 0
P105: 0
P106: 0
P107: 0
P108: 0
P109: 0
P110: 0
P111: 0
P112: 0
P113: 0
P114: 0
P115: 0
P116: 0
P117: 0
P118: 0
P119: 0
P120: 0
P121: 0
P122: 0
P123: 0
P124: 0
P125: 0
P126: 0
P127: 0
P128: 0
P129: 0
P130: 0
P131: 0
P132: 0
P133: 0
P134: 0
P135: 0
P136: 0
P137: 0
G138: =IF($E138="","",$E138+$G$9) ->  | H138: =IF($E138="","",$E138+$H$9) ->  | I138: =IF($E138="","",$E138+$I$9) ->  | J138: =IF($E138="","",$E138+$J$9) ->  | K138: =IF($E138="","",$E138+$K$9) ->  | L138: =IF($E138="","",$E138+$L$9) ->  | M138: =IF($E138="","",$E138+$M$9) ->  | P138: 0
P139: 0
P140: =IFERROR(IF(G140=TODAY(),"1",IF(H140=TODAY(),"1",IF(I140=TODAY(),"1",IF(J140=TODAY(),"1",IF(K140=TODAY(),"1",IF(L140=TODAY(),"1",IF(M140=TODAY(),"1",))))))),"") -> 0
P141: 0
P142: 0
P143: 0
P144: 0
P145: 0
P146: 0
P147: 0
P148: 0
P149: 0
P150: 0
P151: 0
P152: 0
P153: 0
P154: 0
P155: 0
P156: 0
P157: 0
P158: 0
P159: 0
P160: 0
P161: 0
P162: 0
P163: 0
P164: 0
P165: 0
P166: 0
P167: 0
P168: 0
P169: 0
P170: 0
P171: 0
P172: 0
P173: 0
P174: 0
P175: 0
P176: 0
P177: 0
P178: 0
P179: 0
P180: 0
P181: 0
P182: 0
P183: 0
P184: 0
P185: 0
P186: 0
P187: 0
P188: 0
P189: 0
P190: 0
P191: 0
P192: 0
P193: 0
P194: 0
P195: 0
P196: 0
P197: 0
P198: 0
P199: 0
P200: 0
P201: 0
G202: =IF($E202="","",$E202+$G$9) ->  | H202: =IF($E202="","",$E202+$H$9) ->  | I202: =IF($E202="","",$E202+$I$9) ->  | J202: =IF($E202="","",$E202+$J$9) ->  | K202: =IF($E202="","",$E202+$K$9) ->  | L202: =IF($E202="","",$E202+$L$9) ->  | M202: =IF($E202="","",$E202+$M$9) ->  | P202: 0
P203: 0
P204: =IFERROR(IF(G204=TODAY(),"1",IF(H204=TODAY(),"1",IF(I204=TODAY(),"1",IF(J204=TODAY(),"1",IF(K204=TODAY(),"1",IF(L204=TODAY(),"1",IF(M204=TODAY(),"1",))))))),"") -> 0
P205: 0
... 54 more rows

Sheet 2
K4: Assuntos | L4: Finalizado | M4: Pendentes
K5: =COUNTA(O10:O259) -> 0 | L5: =COUNTIF(O10:O259,"Sim") -> 0 | M5: =K5-L5 -> 0 | O5: =L5/K5 -> 
B7: =Edital!C16 -> RACIOCÍNIO LÓGICO MATEMÁTICO | E7: Teoria | G7: Revisões | O7: Teoria | P7: =COUNTIF($P$10:$P$259,"<>0") -> 0
B9: Assuntos | E9: Data estudo | G9: 1 | H9: 7 | I9: 15 | J9: 30 | K9: 60 | L9: 90 | M9: 140 | O9: Finalizei o assunto?
B10: Matéria | G10: =IF($E10="","",$E10+$G$9) ->  | H10: =IF($E10="","",$E10+$H$9) ->  | I10: =IF($E10="","",$E10+$I$9) ->  | J10: =IF($E10="","",$E10+$J$9) ->  | K10: =IF($E10="","",$E10+$K$9) ->  | L10: =IF($E10="","",$E10+$L$9) ->  | M10: =IF($E10="","",$E10+$M$9) ->  | P10: =IFERROR(IF(G10=TODAY(),"1",IF(H10=TODAY(),"1",IF(I10=TODAY(),"1",IF(J10=TODAY(),"1",IF(K10=TODAY(),"1",IF(L10=TODAY(),"1",IF(M10=TODAY(),"1",))))))),"") -> 0
P11: =IFERROR(IF(G11=TODAY(),"1",IF(H11=TODAY(),"1",IF(I11=TODAY(),"1",IF(J11=TODAY(),"1",IF(K11=TODAY(),"1",IF(L11=TODAY(),"1",IF(M11=TODAY(),"1",))))))),"") -> 0
P12: =IFERROR(IF(G12=TODAY(),"1",IF(H12=TODAY(),"1",IF(I12=TODAY(),"1",IF(J12=TODAY(),"1",IF(K12=TODAY(),"1",IF(L12=TODAY(),"1",IF(M12=TODAY(),"1",))))))),"") -> 0
P13: 0
P14: 0
P15: 0
P16: 0
P17: 0
P18: 0
P19: 0
P20: 0
P21: 0
P22: 0
P23: 0
P24: 0
P25: 0
P26: 0
P27: 0
P28: 0
P29: 0
P30: 0
P31: 0
P32: 0
P33: 0
P34: 0
P35: 0
P36: 0
P37: 0
P38: 0
P39: 0
P40: 0
P41: 0
P42: 0
P43: 0
P44: 0
P45: 0
P46: 0
P47: 0
P48: 0
P49: 0
P50: 0
P51: 0
P52: 0
P53: 0
P54: 0
P55: 0
P56: 0
P57: 0
P58: 0
P59: 0
P60: 0
P61: 0
P62: 0
P63: 0
P64: 0
P65: 0
P66: 0
P67: 0
P68: 0
P69: 0
P70: 0
P71: 0
P72: 0
P73: 0
G74: =IF($E74="","",$E74+$G$9) ->  | H74: =IF($E74="","",$E74+$H$9) ->  | I74: =IF($E74="","",$E74+$I$9) ->  | J74: =IF($E74="","",$E74+$J$9) ->  | K74: =IF($E74="","",$E74+$K$9) ->  | L74: =IF($E74="","",$E74+$L$9) ->  | M74: =IF($E74="","",$E74+$M$9) ->  | P74: 0
P75: 0
P76: =IFERROR(IF(G76=TODAY(),"1",IF(H76=TODAY(),"1",IF(I76=TODAY(),"1",IF(J76=TODAY(),"1",IF(K76=TODAY(),"1",IF(L76=TODAY(),"1",IF(M76=TODAY(),"1",))))))),"") -> 0
P77: 0
P78: 0
P79: 0
P80: 0
P81: 0
P82: 0
P83: 0
P84: 0
P85: 0
P86: 0
P87: 0
P88: 0
P89: 0
P90: 0
P91: 0
P92: 0
P93: 0
P94: 0
P95: 0
P96: 0
P97: 0
P98: 0
P99: 0
P100: 0
P101: 0
P102: 0
P103: 0
P104: 0
P105: 0
P106: 0
P107: 0
P108: 0
P109: 0
P110: 0
P111: 0
P112: 0
P113: 0
P114: 0
P115: 0
P116: 0
P117: 0
P118: 0
P119: 0
P120: 0
P121: 0
P122: 0
P123: 0
P124: 0
P125: 0
P126: 0
P127: 0
P128: 0
P129: 0
P130: 0
P131: 0
P132: 0
P133: 0
P134: 0
P135: 0
P136: 0
P137: 0
G138: =IF($E138="","",$E138+$G$9) ->  | H138: =IF($E138="","",$E138+$H$9) ->  | I138: =IF($E138="","",$E138+$I$9) ->  | J138: =IF($E138="","",$E138+$J$9) ->  | K138: =IF($E138="","",$E138+$K$9) ->  | L138: =IF($E138="","",$E138+$L$9) ->  | M138: =IF($E138="","",$E138+$M$9) ->  | P138: 0
P139: 0
P140: =IFERROR(IF(G140=TODAY(),"1",IF(H140=TODAY(),"1",IF(I140=TODAY(),"1",IF(J140=TODAY(),"1",IF(K140=TODAY(),"1",IF(L140=TODAY(),"1",IF(M140=TODAY(),"1",))))))),"") -> 0
P141: 0
P142: 0
P143: 0
P144: 0
P145: 0
P146: 0
P147: 0
P148: 0
P149: 0
P150: 0
P151: 0
P152: 0
P153: 0
P154: 0
P155: 0
P156: 0
P157: 0
P158: 0
P159: 0
P160: 0
P161: 0
P162: 0
P163: 0
P164: 0
P165: 0
P166: 0
P167: 0
P168: 0
P169: 0
P170: 0
P171: 0
P172: 0
P173: 0
P174: 0
P175: 0
P176: 0
P177: 0
P178: 0
P179: 0
P180: 0
P181: 0
P182: 0
P183: 0
P184: 0
P185: 0
P186: 0
P187: 0
P188: 0
P189: 0
P190: 0
P191: 0
P192: 0
P193: 0
P194: 0
P195: 0
P196: 0
P197: 0
P198: 0
P199: 0
P200: 0
P201: 0
G202: =IF($E202="","",$E202+$G$9) ->  | H202: =IF($E202="","",$E202+$H$9) ->  | I202: =IF($E202="","",$E202+$I$9) ->  | J202: =IF($E202="","",$E202+$J$9) ->  | K202: =IF($E202="","",$E202+$K$9) ->  | L202: =IF($E202="","",$E202+$L$9) ->  | M202: =IF($E202="","",$E202+$M$9) ->  | P202: 0
P203: 0
P204: =IFERROR(IF(G204=TODAY(),"1",IF(H204=TODAY(),"1",IF(I204=TODAY(),"1",IF(J204=TODAY(),"1",IF(K204=TODAY(),"1",IF(L204=TODAY(),"1",IF(M204=TODAY(),"1",))))))),"") -> 0
P205: 0
... 54 more rows

Sheet 3
K4: Assuntos | L4: Finalizado | M4: Pendentes
K5: =COUNTA(O10:O259) -> 0 | L5: =COUNTIF(O10:O259,"Sim") -> 0 | M5: =K5-L5 -> 0 | O5: =L5/K5 -> 
B7: =Edital!C17 -> INFORMÁTICA | E7: Teoria | G7: Revisões | O7: Teoria | P7: =COUNTIF($P$10:$P$259,"<>0") -> 0
B9: Assuntos | E9: Data estudo | G9: 1 | H9: 7 | I9: 15 | J9: 30 | K9: 60 | L9: 90 | M9: 140 | O9: Finalizei o assunto?
B10: Matéria | G10: =IF($E10="","",$E10+$G$9) ->  | H10: =IF($E10="","",$E10+$H$9) ->  | I10: =IF($E10="","",$E10+$I$9) ->  | J10: =IF($E10="","",$E10+$J$9) ->  | K10: =IF($E10="","",$E10+$K$9) ->  | L10: =IF($E10="","",$E10+$L$9) ->  | M10: =IF($E10="","",$E10+$M$9) ->  | P10: =IFERROR(IF(G10=TODAY(),"1",IF(H10=TODAY(),"1",IF(I10=TODAY(),"1",IF(J10=TODAY(),"1",IF(K10=TODAY(),"1",IF(L10=TODAY(),"1",IF(M10=TODAY(),"1",))))))),"") -> 0
P11: =IFERROR(IF(G11=TODAY(),"1",IF(H11=TODAY(),"1",IF(I11=TODAY(),"1",IF(J11=TODAY(),"1",IF(K11=TODAY(),"1",IF(L11=TODAY(),"1",IF(M11=TODAY(),"1",))))))),"") -> 0
P12: =IFERROR(IF(G12=TODAY(),"1",IF(H12=TODAY(),"1",IF(I12=TODAY(),"1",IF(J12=TODAY(),"1",IF(K12=TODAY(),"1",IF(L12=TODAY(),"1",IF(M12=TODAY(),"1",))))))),"") -> 0
P13: 0
P14: 0
P15: 0
P16: 0
P17: 0
P18: 0
P19: 0
P20: 0
P21: 0
P22: 0
P23: 0
P24: 0
P25: 0
P26: 0
P27: 0
P28: 0
P29: 0
P30: 0
P31: 0
P32: 0
P33: 0
P34: 0
P35: 0
P36: 0
P37: 0
P38: 0
P39: 0
P40: 0
P41: 0
P42: 0
P43: 0
P44: 0
P45: 0
P46: 0
P47: 0
P48: 0
P49: 0
P50: 0
P51: 0
P52: 0
P53: 0
P54: 0
P55: 0
P56: 0
P57: 0
P58: 0
P59: 0
P60: 0
P61: 0
P62: 0
P63: 0
P64: 0
P65: 0
P66: 0
P67: 0
P68: 0
P69: 0
P70: 0
P71: 0
P72: 0
P73: 0
G74: =IF($E74="","",$E74+$G$9) ->  | H74: =IF($E74="","",$E74+$H$9) ->  | I74: =IF($E74="","",$E74+$I$9) ->  | J74: =IF($E74="","",$E74+$J$9) ->  | K74: =IF($E74="","",$E74+$K$9) ->  | L74: =IF($E74="","",$E74+$L$9) ->  | M74: =IF($E74="","",$E74+$M$9) ->  | P74: 0
P75: 0
P76: =IFERROR(IF(G76=TODAY(),"1",IF(H76=TODAY(),"1",IF(I76=TODAY(),"1",IF(J76=TODAY(),"1",IF(K76=TODAY(),"1",IF(L76=TODAY(),"1",IF(M76=TODAY(),"1",))))))),"") -> 0
P77: 0
P78: 0
P79: 0
P80: 0
P81: 0
P82: 0
P83: 0
P84: 0
P85: 0
P86: 0
P87: 0
P88: 0
P89: 0
P90: 0
P91: 0
P92: 0
P93: 0
P94: 0
P95: 0
P96: 0
P97: 0
P98: 0
P99: 0
P100: 0
P101: 0
P102: 0
P103: 0
P104: 0
P105: 0
P106: 0
P107: 0
P108: 0
P109: 0
P110: 0
P111: 0
P112: 0
P113: 0
P114: 0
P115: 0
P116: 0
P117: 0
P118: 0
P119: 0
P120: 0
P121: 0
P122: 0
P123: 0
P124: 0
P125: 0
P126: 0
P127: 0
P128: 0
P129: 0
P130: 0
P131: 0
P132: 0
P133: 0
P134: 0
P135: 0
P136: 0
P137: 0
G138: =IF($E138="","",$E138+$G$9) ->  | H138: =IF($E138="","",$E138+$H$9) ->  | I138: =IF($E138="","",$E138+$I$9) ->  | J138: =IF($E138="","",$E138+$J$9) ->  | K138: =IF($E138="","",$E138+$K$9) ->  | L138: =IF($E138="","",$E138+$L$9) ->  | M138: =IF($E138="","",$E138+$M$9) ->  | P138: 0
P139: 0
P140: =IFERROR(IF(G140=TODAY(),"1",IF(H140=TODAY(),"1",IF(I140=TODAY(),"1",IF(J140=TODAY(),"1",IF(K140=TODAY(),"1",IF(L140=TODAY(),"1",IF(M140=TODAY(),"1",))))))),"") -> 0
P141: 0
P142: 0
P143: 0
P144: 0
P145: 0
P146: 0
P147: 0
P148: 0
P149: 0
P150: 0
P151: 0
P152: 0
P153: 0
P154: 0
P155: 0
P156: 0
P157: 0
P158: 0
P159: 0
P160: 0
P161: 0
P162: 0
P163: 0
P164: 0
P165: 0
P166: 0
P167: 0
P168: 0
P169: 0
P170: 0
P171: 0
P172: 0
P173: 0
P174: 0
P175: 0
P176: 0
P177: 0
P178: 0
P179: 0
P180: 0
P181: 0
P182: 0
P183: 0
P184: 0
P185: 0
P186: 0
P187: 0
P188: 0
P189: 0
P190: 0
P191: 0
P192: 0
P193: 0
P194: 0
P195: 0
P196: 0
P197: 0
P198: 0
P199: 0
P200: 0
P201: 0
G202: =IF($E202="","",$E202+$G$9) ->  | H202: =IF($E202="","",$E202+$H$9) ->  | I202: =IF($E202="","",$E202+$I$9) ->  | J202: =IF($E202="","",$E202+$J$9) ->  | K202: =IF($E202="","",$E202+$K$9) ->  | L202: =IF($E202="","",$E202+$L$9) ->  | M202: =IF($E202="","",$E202+$M$9) ->  | P202: 0
P203: 0
P204: =IFERROR(IF(G204=TODAY(),"1",IF(H204=TODAY(),"1",IF(I204=TODAY(),"1",IF(J204=TODAY(),"1",IF(K204=TODAY(),"1",IF(L204=TODAY(),"1",IF(M204=TODAY(),"1",))))))),"") -> 0
P205: 0
... 54 more rows
